{"text_format":"3","workbook":"xlsx","n_sheets":2,"sheets":["Начало","Годишен календар"],"not_rendered":{"images":4,"defined_names":14},"read":"whole","date_system":"1900"}

{"sheet":"Начало","index":0,"n_rows":7,"n_cols":2,"rows_kept":7}
[null,"ЗА ТОЗИ ШАБЛОН"]
[null,"Използвайте този шаблон за създаване на лични малък бизнес календар за всяка година."]
[null,"Попълнете име на фирма и данни за контакт и добавите емблема на фирмата."]
[null,"Изберете година и въведете важни дати и събития."]
[null,"Забележка: "]
[null,"Допълнителни инструкции са предоставени в колона A в работния лист на ГОДИШНИЯ КАЛЕНДАР. Този текст е скрит нарочно. За да премахнете текста, изберете колона А, след което изберете DELETE. "]
[null,"За да научите повече за таблиците, натиснете SHIFT и след това F10 в таблица, изберете опцията ТАБЛИЦА, след което изберете АЛТЕРНАТИВЕН ТЕКСТ."]

{"sheet":"Годишен календар","index":1,"n_rows":55,"n_cols":21,"rows_kept":55,"merged":[[0,2,0,5],[2,2,2,8],[2,10,2,16],[11,2,11,8],[11,10,11,16],[20,2,20,8],[20,10,20,16],[29,2,29,8],[29,10,29,16],[38,2,38,8],[38,10,38,16],[47,2,47,8],[47,10,47,16],[50,20,54,20]]}
["Създайте малък бизнес календар за произволна година в този работен лист. Полезни указания, за тока как да използвате този работен лист, можете да намерите в клетките в тази колона. Изберете брояча в клетката вдясно, за да променя годината в клетка C1. Етикетът за важните дати е в клетка U1",null,2022,{"$nulls":17},"ВАЖНИ ДАТИ"]
["Съветът е в клетката вдясно","Използвайте брояча, за да промените календарната година"]
["Избраният годишен календар е в клетките от C3 до Q55, януарски календар в клетките от C4 до I10, а февруарски календара в клетките от K4 да Q10. Етикет за януари е в клетка C3, за февруари в клетка K3. Въведете важните дати и събития в клетките от U3 до U42",null,"ЯНУАРИ",{"$nulls":7},"ФЕВРУАРИ",{"$nulls":9},"ЯНУАРИ 1"]
["Таблицата на календара за януари се намират в клетките от C4 до I10, а таблицата на календара за февруари в клетки от K4 до Q10. Следващата инструкция е в клетка A12.",null,"ПОН","ВТО","СРЯ","ЧЕТ","ПЕТ","СЪБ","НЕД",null,"ПОН","ВТО","СРЯ","ЧЕТ","ПЕТ","СЪБ","НЕД",{"$nulls":3},"НОВА ГОДИНА"]
[null,null,{"$f":"IF(DAY(ЯнНед1)=1,\"\",IF(AND(YEAR(ЯнНед1+1)=КалендарнаГодина,MONTH(ЯнНед1+1)=1),ЯнНед1+1,\"\"))","v":""},{"$f":"IF(DAY(ЯнНед1)=1,\"\",IF(AND(YEAR(ЯнНед1+2)=КалендарнаГодина,MONTH(ЯнНед1+2)=1),ЯнНед1+2,\"\"))","v":""},{"$f":"IF(DAY(ЯнНед1)=1,\"\",IF(AND(YEAR(ЯнНед1+3)=КалендарнаГодина,MONTH(ЯнНед1+3)=1),ЯнНед1+3,\"\"))","v":""},{"$f":"IF(DAY(ЯнНед1)=1,\"\",IF(AND(YEAR(ЯнНед1+4)=КалендарнаГодина,MONTH(ЯнНед1+4)=1),ЯнНед1+4,\"\"))","v":""},{"$f":"IF(DAY(ЯнНед1)=1,\"\",IF(AND(YEAR(ЯнНед1+5)=КалендарнаГодина,MONTH(ЯнНед1+5)=1),ЯнНед1+5,\"\"))","v":""},{"$f":"IF(DAY(ЯнНед1)=1,\"\",IF(AND(YEAR(ЯнНед1+6)=КалендарнаГодина,MONTH(ЯнНед1+6)=1),ЯнНед1+6,\"\"))","v":"2022-01-01"},{"$f":"IF(DAY(ЯнНед1)=1,IF(AND(YEAR(ЯнНед1)=КалендарнаГодина,MONTH(ЯнНед1)=1),ЯнНед1,\"\"),IF(AND(YEAR(ЯнНед1+7)=КалендарнаГодина,MONTH(ЯнНед1+7)=1),ЯнНед1+7,\"\"))","v":"2022-01-02"},null,{"$f":"IF(DAY(ФевНед1)=1,\"\",IF(AND(YEAR(ФевНед1+1)=КалендарнаГодина,MONTH(ФевНед1+1)=2),ФевНед1+1,\"\"))","v":""},{"$f":"IF(DAY(ФевНед1)=1,\"\",IF(AND(YEAR(ФевНед1+2)=КалендарнаГодина,MONTH(ФевНед1+2)=2),ФевНед1+2,\"\"))","v":"2022-02-01"},{"$f":"IF(DAY(ФевНед1)=1,\"\",IF(AND(YEAR(ФевНед1+3)=КалендарнаГодина,MONTH(ФевНед1+3)=2),ФевНед1+3,\"\"))","v":"2022-02-02"},{"$f":"IF(DAY(ФевНед1)=1,\"\",IF(AND(YEAR(ФевНед1+4)=КалендарнаГодина,MONTH(ФевНед1+4)=2),ФевНед1+4,\"\"))","v":"2022-02-03"},{"$f":"IF(DAY(ФевНед1)=1,\"\",IF(AND(YEAR(ФевНед1+5)=КалендарнаГодина,MONTH(ФевНед1+5)=2),ФевНед1+5,\"\"))","v":"2022-02-04"},{"$f":"IF(DAY(ФевНед1)=1,\"\",IF(AND(YEAR(ФевНед1+6)=КалендарнаГодина,MONTH(ФевНед1+6)=2),ФевНед1+6,\"\"))","v":"2022-02-05"},{"$f":"IF(DAY(ФевНед1)=1,IF(AND(YEAR(ФевНед1)=КалендарнаГодина,MONTH(ФевНед1)=2),ФевНед1,\"\"),IF(AND(YEAR(ФевНед1+7)=КалендарнаГодина,MONTH(ФевНед1+7)=2),ФевНед1+7,\"\"))","v":"2022-02-06"}]
[null,null,{"$f":"IF(DAY(ЯнНед1)=1,IF(AND(YEAR(ЯнНед1+1)=КалендарнаГодина,MONTH(ЯнНед1+1)=1),ЯнНед1+1,\"\"),IF(AND(YEAR(ЯнНед1+8)=КалендарнаГодина,MONTH(ЯнНед1+8)=1),ЯнНед1+8,\"\"))","v":"2022-01-03"},{"$f":"IF(DAY(ЯнНед1)=1,IF(AND(YEAR(ЯнНед1+2)=КалендарнаГодина,MONTH(ЯнНед1+2)=1),ЯнНед1+2,\"\"),IF(AND(YEAR(ЯнНед1+9)=КалендарнаГодина,MONTH(ЯнНед1+9)=1),ЯнНед1+9,\"\"))","v":"2022-01-04"},{"$f":"IF(DAY(ЯнНед1)=1,IF(AND(YEAR(ЯнНед1+3)=КалендарнаГодина,MONTH(ЯнНед1+3)=1),ЯнНед1+3,\"\"),IF(AND(YEAR(ЯнНед1+10)=КалендарнаГодина,MONTH(ЯнНед1+10)=1),ЯнНед1+10,\"\"))","v":"2022-01-05"},{"$f":"IF(DAY(ЯнНед1)=1,IF(AND(YEAR(ЯнНед1+4)=КалендарнаГодина,MONTH(ЯнНед1+4)=1),ЯнНед1+4,\"\"),IF(AND(YEAR(ЯнНед1+11)=КалендарнаГодина,MONTH(ЯнНед1+11)=1),ЯнНед1+11,\"\"))","v":"2022-01-06"},{"$f":"IF(DAY(ЯнНед1)=1,IF(AND(YEAR(ЯнНед1+5)=КалендарнаГодина,MONTH(ЯнНед1+5)=1),ЯнНед1+5,\"\"),IF(AND(YEAR(ЯнНед1+12)=КалендарнаГодина,MONTH(ЯнНед1+12)=1),ЯнНед1+12,\"\"))","v":"2022-01-07"},{"$f":"IF(DAY(ЯнНед1)=1,IF(AND(YEAR(ЯнНед1+6)=КалендарнаГодина,MONTH(ЯнНед1+6)=1),ЯнНед1+6,\"\"),IF(AND(YEAR(ЯнНед1+13)=КалендарнаГодина,MONTH(ЯнНед1+13)=1),ЯнНед1+13,\"\"))","v":"2022-01-08"},{"$f":"IF(DAY(ЯнНед1)=1,IF(AND(YEAR(ЯнНед1+7)=КалендарнаГодина,MONTH(ЯнНед1+7)=1),ЯнНед1+7,\"\"),IF(AND(YEAR(ЯнНед1+14)=КалендарнаГодина,MONTH(ЯнНед1+14)=1),ЯнНед1+14,\"\"))","v":"2022-01-09"},null,{"$f":"IF(DAY(ФевНед1)=1,IF(AND(YEAR(ФевНед1+1)=КалендарнаГодина,MONTH(ФевНед1+1)=2),ФевНед1+1,\"\"),IF(AND(YEAR(ФевНед1+8)=КалендарнаГодина,MONTH(ФевНед1+8)=2),ФевНед1+8,\"\"))","v":"2022-02-07"},{"$f":"IF(DAY(ФевНед1)=1,IF(AND(YEAR(ФевНед1+2)=КалендарнаГодина,MONTH(ФевНед1+2)=2),ФевНед1+2,\"\"),IF(AND(YEAR(ФевНед1+9)=КалендарнаГодина,MONTH(ФевНед1+9)=2),ФевНед1+9,\"\"))","v":"2022-02-08"},{"$f":"IF(DAY(ФевНед1)=1,IF(AND(YEAR(ФевНед1+3)=КалендарнаГодина,MONTH(ФевНед1+3)=2),ФевНед1+3,\"\"),IF(AND(YEAR(ФевНед1+10)=КалендарнаГодина,MONTH(ФевНед1+10)=2),ФевНед1+10,\"\"))","v":"2022-02-09"},{"$f":"IF(DAY(ФевНед1)=1,IF(AND(YEAR(ФевНед1+4)=КалендарнаГодина,MONTH(ФевНед1+4)=2),ФевНед1+4,\"\"),IF(AND(YEAR(ФевНед1+11)=КалендарнаГодина,MONTH(ФевНед1+11)=2),ФевНед1+11,\"\"))","v":"2022-02-10"},{"$f":"IF(DAY(ФевНед1)=1,IF(AND(YEAR(ФевНед1+5)=КалендарнаГодина,MONTH(ФевНед1+5)=2),ФевНед1+5,\"\"),IF(AND(YEAR(ФевНед1+12)=КалендарнаГодина,MONTH(ФевНед1+12)=2),ФевНед1+12,\"\"))","v":"2022-02-11"},{"$f":"IF(DAY(ФевНед1)=1,IF(AND(YEAR(ФевНед1+6)=КалендарнаГодина,MONTH(ФевНед1+6)=2),ФевНед1+6,\"\"),IF(AND(YEAR(ФевНед1+13)=КалендарнаГодина,MONTH(ФевНед1+13)=2),ФевНед1+13,\"\"))","v":"2022-02-12"},{"$f":"IF(DAY(ФевНед1)=1,IF(AND(YEAR(ФевНед1+7)=КалендарнаГодина,MONTH(ФевНед1+7)=2),ФевНед1+7,\"\"),IF(AND(YEAR(ФевНед1+14)=КалендарнаГодина,MONTH(ФевНед1+14)=2),ФевНед1+14,\"\"))","v":"2022-02-13"},{"$nulls":3},"14 ФЕВРУАРИ"]
[null,null,{"$f":"IF(DAY(ЯнНед1)=1,IF(AND(YEAR(ЯнНед1+8)=КалендарнаГодина,MONTH(ЯнНед1+8)=1),ЯнНед1+8,\"\"),IF(AND(YEAR(ЯнНед1+15)=КалендарнаГодина,MONTH(ЯнНед1+15)=1),ЯнНед1+15,\"\"))","v":"2022-01-10"},{"$f":"IF(DAY(ЯнНед1)=1,IF(AND(YEAR(ЯнНед1+9)=КалендарнаГодина,MONTH(ЯнНед1+9)=1),ЯнНед1+9,\"\"),IF(AND(YEAR(ЯнНед1+16)=КалендарнаГодина,MONTH(ЯнНед1+16)=1),ЯнНед1+16,\"\"))","v":"2022-01-11"},{"$f":"IF(DAY(ЯнНед1)=1,IF(AND(YEAR(ЯнНед1+10)=КалендарнаГодина,MONTH(ЯнНед1+10)=1),ЯнНед1+10,\"\"),IF(AND(YEAR(ЯнНед1+17)=КалендарнаГодина,MONTH(ЯнНед1+17)=1),ЯнНед1+17,\"\"))","v":"2022-01-12"},{"$f":"IF(DAY(ЯнНед1)=1,IF(AND(YEAR(ЯнНед1+11)=КалендарнаГодина,MONTH(ЯнНед1+11)=1),ЯнНед1+11,\"\"),IF(AND(YEAR(ЯнНед1+18)=КалендарнаГодина,MONTH(ЯнНед1+18)=1),ЯнНед1+18,\"\"))","v":"2022-01-13"},{"$f":"IF(DAY(ЯнНед1)=1,IF(AND(YEAR(ЯнНед1+12)=КалендарнаГодина,MONTH(ЯнНед1+12)=1),ЯнНед1+12,\"\"),IF(AND(YEAR(ЯнНед1+19)=КалендарнаГодина,MONTH(ЯнНед1+19)=1),ЯнНед1+19,\"\"))","v":"2022-01-14"},{"$f":"IF(DAY(ЯнНед1)=1,IF(AND(YEAR(ЯнНед1+13)=КалендарнаГодина,MONTH(ЯнНед1+13)=1),ЯнНед1+13,\"\"),IF(AND(YEAR(ЯнНед1+20)=КалендарнаГодина,MONTH(ЯнНед1+20)=1),ЯнНед1+20,\"\"))","v":"2022-01-15"},{"$f":"IF(DAY(ЯнНед1)=1,IF(AND(YEAR(ЯнНед1+14)=КалендарнаГодина,MONTH(ЯнНед1+14)=1),ЯнНед1+14,\"\"),IF(AND(YEAR(ЯнНед1+21)=КалендарнаГодина,MONTH(ЯнНед1+21)=1),ЯнНед1+21,\"\"))","v":"2022-01-16"},null,{"$f":"IF(DAY(ФевНед1)=1,IF(AND(YEAR(ФевНед1+8)=КалендарнаГодина,MONTH(ФевНед1+8)=2),ФевНед1+8,\"\"),IF(AND(YEAR(ФевНед1+15)=КалендарнаГодина,MONTH(ФевНед1+15)=2),ФевНед1+15,\"\"))","v":"2022-02-14"},{"$f":"IF(DAY(ФевНед1)=1,IF(AND(YEAR(ФевНед1+9)=КалендарнаГодина,MONTH(ФевНед1+9)=2),ФевНед1+9,\"\"),IF(AND(YEAR(ФевНед1+16)=КалендарнаГодина,MONTH(ФевНед1+16)=2),ФевНед1+16,\"\"))","v":"2022-02-15"},{"$f":"IF(DAY(ФевНед1)=1,IF(AND(YEAR(ФевНед1+10)=КалендарнаГодина,MONTH(ФевНед1+10)=2),ФевНед1+10,\"\"),IF(AND(YEAR(ФевНед1+17)=КалендарнаГодина,MONTH(ФевНед1+17)=2),ФевНед1+17,\"\"))","v":"2022-02-16"},{"$f":"IF(DAY(ФевНед1)=1,IF(AND(YEAR(ФевНед1+11)=КалендарнаГодина,MONTH(ФевНед1+11)=2),ФевНед1+11,\"\"),IF(AND(YEAR(ФевНед1+18)=КалендарнаГодина,MONTH(ФевНед1+18)=2),ФевНед1+18,\"\"))","v":"2022-02-17"},{"$f":"IF(DAY(ФевНед1)=1,IF(AND(YEAR(ФевНед1+12)=КалендарнаГодина,MONTH(ФевНед1+12)=2),ФевНед1+12,\"\"),IF(AND(YEAR(ФевНед1+19)=КалендарнаГодина,MONTH(ФевНед1+19)=2),ФевНед1+19,\"\"))","v":"2022-02-18"},{"$f":"IF(DAY(ФевНед1)=1,IF(AND(YEAR(ФевНед1+13)=КалендарнаГодина,MONTH(ФевНед1+13)=2),ФевНед1+13,\"\"),IF(AND(YEAR(ФевНед1+20)=КалендарнаГодина,MONTH(ФевНед1+20)=2),ФевНед1+20,\"\"))","v":"2022-02-19"},{"$f":"IF(DAY(ФевНед1)=1,IF(AND(YEAR(ФевНед1+14)=КалендарнаГодина,MONTH(ФевНед1+14)=2),ФевНед1+14,\"\"),IF(AND(YEAR(ФевНед1+21)=КалендарнаГодина,MONTH(ФевНед1+21)=2),ФевНед1+21,\"\"))","v":"2022-02-20"},{"$nulls":3},"СВ. ВАЛЕНТИН"]
[null,null,{"$f":"IF(DAY(ЯнНед1)=1,IF(AND(YEAR(ЯнНед1+15)=КалендарнаГодина,MONTH(ЯнНед1+15)=1),ЯнНед1+15,\"\"),IF(AND(YEAR(ЯнНед1+22)=КалендарнаГодина,MONTH(ЯнНед1+22)=1),ЯнНед1+22,\"\"))","v":"2022-01-17"},{"$f":"IF(DAY(ЯнНед1)=1,IF(AND(YEAR(ЯнНед1+16)=КалендарнаГодина,MONTH(ЯнНед1+16)=1),ЯнНед1+16,\"\"),IF(AND(YEAR(ЯнНед1+23)=КалендарнаГодина,MONTH(ЯнНед1+23)=1),ЯнНед1+23,\"\"))","v":"2022-01-18"},{"$f":"IF(DAY(ЯнНед1)=1,IF(AND(YEAR(ЯнНед1+17)=КалендарнаГодина,MONTH(ЯнНед1+17)=1),ЯнНед1+17,\"\"),IF(AND(YEAR(ЯнНед1+24)=КалендарнаГодина,MONTH(ЯнНед1+24)=1),ЯнНед1+24,\"\"))","v":"2022-01-19"},{"$f":"IF(DAY(ЯнНед1)=1,IF(AND(YEAR(ЯнНед1+18)=КалендарнаГодина,MONTH(ЯнНед1+18)=1),ЯнНед1+18,\"\"),IF(AND(YEAR(ЯнНед1+25)=КалендарнаГодина,MONTH(ЯнНед1+25)=1),ЯнНед1+25,\"\"))","v":"2022-01-20"},{"$f":"IF(DAY(ЯнНед1)=1,IF(AND(YEAR(ЯнНед1+19)=КалендарнаГодина,MONTH(ЯнНед1+19)=1),ЯнНед1+19,\"\"),IF(AND(YEAR(ЯнНед1+26)=КалендарнаГодина,MONTH(ЯнНед1+26)=1),ЯнНед1+26,\"\"))","v":"2022-01-21"},{"$f":"IF(DAY(ЯнНед1)=1,IF(AND(YEAR(ЯнНед1+20)=КалендарнаГодина,MONTH(ЯнНед1+20)=1),ЯнНед1+20,\"\"),IF(AND(YEAR(ЯнНед1+27)=КалендарнаГодина,MONTH(ЯнНед1+27)=1),ЯнНед1+27,\"\"))","v":"2022-01-22"},{"$f":"IF(DAY(ЯнНед1)=1,IF(AND(YEAR(ЯнНед1+21)=КалендарнаГодина,MONTH(ЯнНед1+21)=1),ЯнНед1+21,\"\"),IF(AND(YEAR(ЯнНед1+28)=КалендарнаГодина,MONTH(ЯнНед1+28)=1),ЯнНед1+28,\"\"))","v":"2022-01-23"},null,{"$f":"IF(DAY(ФевНед1)=1,IF(AND(YEAR(ФевНед1+15)=КалендарнаГодина,MONTH(ФевНед1+15)=2),ФевНед1+15,\"\"),IF(AND(YEAR(ФевНед1+22)=КалендарнаГодина,MONTH(ФевНед1+22)=2),ФевНед1+22,\"\"))","v":"2022-02-21"},{"$f":"IF(DAY(ФевНед1)=1,IF(AND(YEAR(ФевНед1+16)=КалендарнаГодина,MONTH(ФевНед1+16)=2),ФевНед1+16,\"\"),IF(AND(YEAR(ФевНед1+23)=КалендарнаГодина,MONTH(ФевНед1+23)=2),ФевНед1+23,\"\"))","v":"2022-02-22"},{"$f":"IF(DAY(ФевНед1)=1,IF(AND(YEAR(ФевНед1+17)=КалендарнаГодина,MONTH(ФевНед1+17)=2),ФевНед1+17,\"\"),IF(AND(YEAR(ФевНед1+24)=КалендарнаГодина,MONTH(ФевНед1+24)=2),ФевНед1+24,\"\"))","v":"2022-02-23"},{"$f":"IF(DAY(ФевНед1)=1,IF(AND(YEAR(ФевНед1+18)=КалендарнаГодина,MONTH(ФевНед1+18)=2),ФевНед1+18,\"\"),IF(AND(YEAR(ФевНед1+25)=КалендарнаГодина,MONTH(ФевНед1+25)=2),ФевНед1+25,\"\"))","v":"2022-02-24"},{"$f":"IF(DAY(ФевНед1)=1,IF(AND(YEAR(ФевНед1+19)=КалендарнаГодина,MONTH(ФевНед1+19)=2),ФевНед1+19,\"\"),IF(AND(YEAR(ФевНед1+26)=КалендарнаГодина,MONTH(ФевНед1+26)=2),ФевНед1+26,\"\"))","v":"2022-02-25"},{"$f":"IF(DAY(ФевНед1)=1,IF(AND(YEAR(ФевНед1+20)=КалендарнаГодина,MONTH(ФевНед1+20)=2),ФевНед1+20,\"\"),IF(AND(YEAR(ФевНед1+27)=КалендарнаГодина,MONTH(ФевНед1+27)=2),ФевНед1+27,\"\"))","v":"2022-02-26"},{"$f":"IF(DAY(ФевНед1)=1,IF(AND(YEAR(ФевНед1+21)=КалендарнаГодина,MONTH(ФевНед1+21)=2),ФевНед1+21,\"\"),IF(AND(YEAR(ФевНед1+28)=КалендарнаГодина,MONTH(ФевНед1+28)=2),ФевНед1+28,\"\"))","v":"2022-02-27"}]
[null,null,{"$f":"IF(DAY(ЯнНед1)=1,IF(AND(YEAR(ЯнНед1+22)=КалендарнаГодина,MONTH(ЯнНед1+22)=1),ЯнНед1+22,\"\"),IF(AND(YEAR(ЯнНед1+29)=КалендарнаГодина,MONTH(ЯнНед1+29)=1),ЯнНед1+29,\"\"))","v":"2022-01-24"},{"$f":"IF(DAY(ЯнНед1)=1,IF(AND(YEAR(ЯнНед1+23)=КалендарнаГодина,MONTH(ЯнНед1+23)=1),ЯнНед1+23,\"\"),IF(AND(YEAR(ЯнНед1+30)=КалендарнаГодина,MONTH(ЯнНед1+30)=1),ЯнНед1+30,\"\"))","v":"2022-01-25"},{"$f":"IF(DAY(ЯнНед1)=1,IF(AND(YEAR(ЯнНед1+24)=КалендарнаГодина,MONTH(ЯнНед1+24)=1),ЯнНед1+24,\"\"),IF(AND(YEAR(ЯнНед1+31)=КалендарнаГодина,MONTH(ЯнНед1+31)=1),ЯнНед1+31,\"\"))","v":"2022-01-26"},{"$f":"IF(DAY(ЯнНед1)=1,IF(AND(YEAR(ЯнНед1+25)=КалендарнаГодина,MONTH(ЯнНед1+25)=1),ЯнНед1+25,\"\"),IF(AND(YEAR(ЯнНед1+32)=КалендарнаГодина,MONTH(ЯнНед1+32)=1),ЯнНед1+32,\"\"))","v":"2022-01-27"},{"$f":"IF(DAY(ЯнНед1)=1,IF(AND(YEAR(ЯнНед1+26)=КалендарнаГодина,MONTH(ЯнНед1+26)=1),ЯнНед1+26,\"\"),IF(AND(YEAR(ЯнНед1+33)=КалендарнаГодина,MONTH(ЯнНед1+33)=1),ЯнНед1+33,\"\"))","v":"2022-01-28"},{"$f":"IF(DAY(ЯнНед1)=1,IF(AND(YEAR(ЯнНед1+27)=КалендарнаГодина,MONTH(ЯнНед1+27)=1),ЯнНед1+27,\"\"),IF(AND(YEAR(ЯнНед1+34)=КалендарнаГодина,MONTH(ЯнНед1+34)=1),ЯнНед1+34,\"\"))","v":"2022-01-29"},{"$f":"IF(DAY(ЯнНед1)=1,IF(AND(YEAR(ЯнНед1+28)=КалендарнаГодина,MONTH(ЯнНед1+28)=1),ЯнНед1+28,\"\"),IF(AND(YEAR(ЯнНед1+35)=КалендарнаГодина,MONTH(ЯнНед1+35)=1),ЯнНед1+35,\"\"))","v":"2022-01-30"},null,{"$f":"IF(DAY(ФевНед1)=1,IF(AND(YEAR(ФевНед1+22)=КалендарнаГодина,MONTH(ФевНед1+22)=2),ФевНед1+22,\"\"),IF(AND(YEAR(ФевНед1+29)=КалендарнаГодина,MONTH(ФевНед1+29)=2),ФевНед1+29,\"\"))","v":"2022-02-28"},{"$f":"IF(DAY(ФевНед1)=1,IF(AND(YEAR(ФевНед1+23)=КалендарнаГодина,MONTH(ФевНед1+23)=2),ФевНед1+23,\"\"),IF(AND(YEAR(ФевНед1+30)=КалендарнаГодина,MONTH(ФевНед1+30)=2),ФевНед1+30,\"\"))","v":""},{"$f":"IF(DAY(ФевНед1)=1,IF(AND(YEAR(ФевНед1+24)=КалендарнаГодина,MONTH(ФевНед1+24)=2),ФевНед1+24,\"\"),IF(AND(YEAR(ФевНед1+31)=КалендарнаГодина,MONTH(ФевНед1+31)=2),ФевНед1+31,\"\"))","v":""},{"$f":"IF(DAY(ФевНед1)=1,IF(AND(YEAR(ФевНед1+25)=КалендарнаГодина,MONTH(ФевНед1+25)=2),ФевНед1+25,\"\"),IF(AND(YEAR(ФевНед1+32)=КалендарнаГодина,MONTH(ФевНед1+32)=2),ФевНед1+32,\"\"))","v":""},{"$f":"IF(DAY(ФевНед1)=1,IF(AND(YEAR(ФевНед1+26)=КалендарнаГодина,MONTH(ФевНед1+26)=2),ФевНед1+26,\"\"),IF(AND(YEAR(ФевНед1+33)=КалендарнаГодина,MONTH(ФевНед1+33)=2),ФевНед1+33,\"\"))","v":""},{"$f":"IF(DAY(ФевНед1)=1,IF(AND(YEAR(ФевНед1+27)=КалендарнаГодина,MONTH(ФевНед1+27)=2),ФевНед1+27,\"\"),IF(AND(YEAR(ФевНед1+34)=КалендарнаГодина,MONTH(ФевНед1+34)=2),ФевНед1+34,\"\"))","v":""},{"$f":"IF(DAY(ФевНед1)=1,IF(AND(YEAR(ФевНед1+28)=КалендарнаГодина,MONTH(ФевНед1+28)=2),ФевНед1+28,\"\"),IF(AND(YEAR(ФевНед1+35)=КалендарнаГодина,MONTH(ФевНед1+35)=2),ФевНед1+35,\"\"))","v":""},{"$nulls":3},"22 ФЕВРУАРИ"]
[null,null,{"$f":"IF(DAY(ЯнНед1)=1,IF(AND(YEAR(ЯнНед1+29)=КалендарнаГодина,MONTH(ЯнНед1+29)=1),ЯнНед1+29,\"\"),IF(AND(YEAR(ЯнНед1+36)=КалендарнаГодина,MONTH(ЯнНед1+36)=1),ЯнНед1+36,\"\"))","v":"2022-01-31"},{"$f":"IF(DAY(ЯнНед1)=1,IF(AND(YEAR(ЯнНед1+30)=КалендарнаГодина,MONTH(ЯнНед1+30)=1),ЯнНед1+30,\"\"),IF(AND(YEAR(ЯнНед1+37)=КалендарнаГодина,MONTH(ЯнНед1+37)=1),ЯнНед1+37,\"\"))","v":""},{"$f":"IF(DAY(ЯнНед1)=1,IF(AND(YEAR(ЯнНед1+31)=КалендарнаГодина,MONTH(ЯнНед1+31)=1),ЯнНед1+31,\"\"),IF(AND(YEAR(ЯнНед1+38)=КалендарнаГодина,MONTH(ЯнНед1+38)=1),ЯнНед1+38,\"\"))","v":""},{"$f":"IF(DAY(ЯнНед1)=1,IF(AND(YEAR(ЯнНед1+32)=КалендарнаГодина,MONTH(ЯнНед1+32)=1),ЯнНед1+32,\"\"),IF(AND(YEAR(ЯнНед1+39)=КалендарнаГодина,MONTH(ЯнНед1+39)=1),ЯнНед1+39,\"\"))","v":""},{"$f":"IF(DAY(ЯнНед1)=1,IF(AND(YEAR(ЯнНед1+33)=КалендарнаГодина,MONTH(ЯнНед1+33)=1),ЯнНед1+33,\"\"),IF(AND(YEAR(ЯнНед1+40)=КалендарнаГодина,MONTH(ЯнНед1+40)=1),ЯнНед1+40,\"\"))","v":""},{"$f":"IF(DAY(ЯнНед1)=1,IF(AND(YEAR(ЯнНед1+34)=КалендарнаГодина,MONTH(ЯнНед1+34)=1),ЯнНед1+34,\"\"),IF(AND(YEAR(ЯнНед1+41)=КалендарнаГодина,MONTH(ЯнНед1+41)=1),ЯнНед1+41,\"\"))","v":""},{"$f":"IF(DAY(ЯнНед1)=1,IF(AND(YEAR(ЯнНед1+35)=КалендарнаГодина,MONTH(ЯнНед1+35)=1),ЯнНед1+35,\"\"),IF(AND(YEAR(ЯнНед1+42)=КалендарнаГодина,MONTH(ЯнНед1+42)=1),ЯнНед1+42,\"\"))","v":""},null,{"$f":"IF(DAY(ФевНед1)=1,IF(AND(YEAR(ФевНед1+29)=КалендарнаГодина,MONTH(ФевНед1+29)=2),ФевНед1+29,\"\"),IF(AND(YEAR(ФевНед1+36)=КалендарнаГодина,MONTH(ФевНед1+36)=2),ФевНед1+36,\"\"))","v":""},{"$f":"IF(DAY(ФевНед1)=1,IF(AND(YEAR(ФевНед1+30)=КалендарнаГодина,MONTH(ФевНед1+30)=2),ФевНед1+30,\"\"),IF(AND(YEAR(ФевНед1+37)=КалендарнаГодина,MONTH(ФевНед1+37)=2),ФевНед1+37,\"\"))","v":""},{"$f":"IF(DAY(ФевНед1)=1,IF(AND(YEAR(ФевНед1+31)=КалендарнаГодина,MONTH(ФевНед1+31)=2),ФевНед1+31,\"\"),IF(AND(YEAR(ФевНед1+38)=КалендарнаГодина,MONTH(ФевНед1+38)=2),ФевНед1+38,\"\"))","v":""},{"$f":"IF(DAY(ФевНед1)=1,IF(AND(YEAR(ФевНед1+32)=КалендарнаГодина,MONTH(ФевНед1+32)=2),ФевНед1+32,\"\"),IF(AND(YEAR(ФевНед1+39)=КалендарнаГодина,MONTH(ФевНед1+39)=2),ФевНед1+39,\"\"))","v":""},{"$f":"IF(DAY(ФевНед1)=1,IF(AND(YEAR(ФевНед1+33)=КалендарнаГодина,MONTH(ФевНед1+33)=2),ФевНед1+33,\"\"),IF(AND(YEAR(ФевНед1+40)=КалендарнаГодина,MONTH(ФевНед1+40)=2),ФевНед1+40,\"\"))","v":""},{"$f":"IF(DAY(ФевНед1)=1,IF(AND(YEAR(ФевНед1+34)=КалендарнаГодина,MONTH(ФевНед1+34)=2),ФевНед1+34,\"\"),IF(AND(YEAR(ФевНед1+41)=КалендарнаГодина,MONTH(ФевНед1+41)=2),ФевНед1+41,\"\"))","v":""},{"$f":"IF(DAY(ФевНед1)=1,IF(AND(YEAR(ФевНед1+35)=КалендарнаГодина,MONTH(ФевНед1+35)=2),ФевНед1+35,\"\"),IF(AND(YEAR(ФевНед1+42)=КалендарнаГодина,MONTH(ФевНед1+42)=2),ФевНед1+42,\"\"))","v":""},{"$nulls":3},"ОТВОРЕНИ ВРАТИ"]
[]
["Етикетът за март е в клетка C12, а за април в клетка K12",null,"МАРТ",{"$nulls":7},"АПРИЛ"]
["Таблицата на календара за март се намират в клетките от C13 до I19, а таблицата на календара за април в клетки от K13 до Q19. Следващата инструкция е в клетка A21",null,"ПОН","ВТО","СРЯ","ЧЕТ","ПЕТ","СЪБ","НЕД",null,"ПОН","ВТО","СРЯ","ЧЕТ","ПЕТ","СЪБ","НЕД"]
[null,null,{"$f":"IF(DAY(МарНед1)=1,\"\",IF(AND(YEAR(МарНед1+1)=КалендарнаГодина,MONTH(МарНед1+1)=3),МарНед1+1,\"\"))","v":""},{"$f":"IF(DAY(МарНед1)=1,\"\",IF(AND(YEAR(МарНед1+2)=КалендарнаГодина,MONTH(МарНед1+2)=3),МарНед1+2,\"\"))","v":"2022-03-01"},{"$f":"IF(DAY(МарНед1)=1,\"\",IF(AND(YEAR(МарНед1+3)=КалендарнаГодина,MONTH(МарНед1+3)=3),МарНед1+3,\"\"))","v":"2022-03-02"},{"$f":"IF(DAY(МарНед1)=1,\"\",IF(AND(YEAR(МарНед1+4)=КалендарнаГодина,MONTH(МарНед1+4)=3),МарНед1+4,\"\"))","v":"2022-03-03"},{"$f":"IF(DAY(МарНед1)=1,\"\",IF(AND(YEAR(МарНед1+5)=КалендарнаГодина,MONTH(МарНед1+5)=3),МарНед1+5,\"\"))","v":"2022-03-04"},{"$f":"IF(DAY(МарНед1)=1,\"\",IF(AND(YEAR(МарНед1+6)=КалендарнаГодина,MONTH(МарНед1+6)=3),МарНед1+6,\"\"))","v":"2022-03-05"},{"$f":"IF(DAY(МарНед1)=1,IF(AND(YEAR(МарНед1)=КалендарнаГодина,MONTH(МарНед1)=3),МарНед1,\"\"),IF(AND(YEAR(МарНед1+7)=КалендарнаГодина,MONTH(МарНед1+7)=3),МарНед1+7,\"\"))","v":"2022-03-06"},null,{"$f":"IF(DAY(AprSun1)=1,\"\",IF(AND(YEAR(AprSun1+1)=КалендарнаГодина,MONTH(AprSun1+1)=4),AprSun1+1,\"\"))","v":""},{"$f":"IF(DAY(AprSun1)=1,\"\",IF(AND(YEAR(AprSun1+2)=КалендарнаГодина,MONTH(AprSun1+2)=4),AprSun1+2,\"\"))","v":""},{"$f":"IF(DAY(AprSun1)=1,\"\",IF(AND(YEAR(AprSun1+3)=КалендарнаГодина,MONTH(AprSun1+3)=4),AprSun1+3,\"\"))","v":""},{"$f":"IF(DAY(AprSun1)=1,\"\",IF(AND(YEAR(AprSun1+4)=КалендарнаГодина,MONTH(AprSun1+4)=4),AprSun1+4,\"\"))","v":""},{"$f":"IF(DAY(AprSun1)=1,\"\",IF(AND(YEAR(AprSun1+5)=КалендарнаГодина,MONTH(AprSun1+5)=4),AprSun1+5,\"\"))","v":"2022-04-01"},{"$f":"IF(DAY(AprSun1)=1,\"\",IF(AND(YEAR(AprSun1+6)=КалендарнаГодина,MONTH(AprSun1+6)=4),AprSun1+6,\"\"))","v":"2022-04-02"},{"$f":"IF(DAY(AprSun1)=1,IF(AND(YEAR(AprSun1)=КалендарнаГодина,MONTH(AprSun1)=4),AprSun1,\"\"),IF(AND(YEAR(AprSun1+7)=КалендарнаГодина,MONTH(AprSun1+7)=4),AprSun1+7,\"\"))","v":"2022-04-03"}]
[null,null,{"$f":"IF(DAY(МарНед1)=1,IF(AND(YEAR(МарНед1+1)=КалендарнаГодина,MONTH(МарНед1+1)=3),МарНед1+1,\"\"),IF(AND(YEAR(МарНед1+8)=КалендарнаГодина,MONTH(МарНед1+8)=3),МарНед1+8,\"\"))","v":"2022-03-07"},{"$f":"IF(DAY(МарНед1)=1,IF(AND(YEAR(МарНед1+2)=КалендарнаГодина,MONTH(МарНед1+2)=3),МарНед1+2,\"\"),IF(AND(YEAR(МарНед1+9)=КалендарнаГодина,MONTH(МарНед1+9)=3),МарНед1+9,\"\"))","v":"2022-03-08"},{"$f":"IF(DAY(МарНед1)=1,IF(AND(YEAR(МарНед1+3)=КалендарнаГодина,MONTH(МарНед1+3)=3),МарНед1+3,\"\"),IF(AND(YEAR(МарНед1+10)=КалендарнаГодина,MONTH(МарНед1+10)=3),МарНед1+10,\"\"))","v":"2022-03-09"},{"$f":"IF(DAY(МарНед1)=1,IF(AND(YEAR(МарНед1+4)=КалендарнаГодина,MONTH(МарНед1+4)=3),МарНед1+4,\"\"),IF(AND(YEAR(МарНед1+11)=КалендарнаГодина,MONTH(МарНед1+11)=3),МарНед1+11,\"\"))","v":"2022-03-10"},{"$f":"IF(DAY(МарНед1)=1,IF(AND(YEAR(МарНед1+5)=КалендарнаГодина,MONTH(МарНед1+5)=3),МарНед1+5,\"\"),IF(AND(YEAR(МарНед1+12)=КалендарнаГодина,MONTH(МарНед1+12)=3),МарНед1+12,\"\"))","v":"2022-03-11"},{"$f":"IF(DAY(МарНед1)=1,IF(AND(YEAR(МарНед1+6)=КалендарнаГодина,MONTH(МарНед1+6)=3),МарНед1+6,\"\"),IF(AND(YEAR(МарНед1+13)=КалендарнаГодина,MONTH(МарНед1+13)=3),МарНед1+13,\"\"))","v":"2022-03-12"},{"$f":"IF(DAY(МарНед1)=1,IF(AND(YEAR(МарНед1+7)=КалендарнаГодина,MONTH(МарНед1+7)=3),МарНед1+7,\"\"),IF(AND(YEAR(МарНед1+14)=КалендарнаГодина,MONTH(МарНед1+14)=3),МарНед1+14,\"\"))","v":"2022-03-13"},null,{"$f":"IF(DAY(AprSun1)=1,IF(AND(YEAR(AprSun1+1)=КалендарнаГодина,MONTH(AprSun1+1)=4),AprSun1+1,\"\"),IF(AND(YEAR(AprSun1+8)=КалендарнаГодина,MONTH(AprSun1+8)=4),AprSun1+8,\"\"))","v":"2022-04-04"},{"$f":"IF(DAY(AprSun1)=1,IF(AND(YEAR(AprSun1+2)=КалендарнаГодина,MONTH(AprSun1+2)=4),AprSun1+2,\"\"),IF(AND(YEAR(AprSun1+9)=КалендарнаГодина,MONTH(AprSun1+9)=4),AprSun1+9,\"\"))","v":"2022-04-05"},{"$f":"IF(DAY(AprSun1)=1,IF(AND(YEAR(AprSun1+3)=КалендарнаГодина,MONTH(AprSun1+3)=4),AprSun1+3,\"\"),IF(AND(YEAR(AprSun1+10)=КалендарнаГодина,MONTH(AprSun1+10)=4),AprSun1+10,\"\"))","v":"2022-04-06"},{"$f":"IF(DAY(AprSun1)=1,IF(AND(YEAR(AprSun1+4)=КалендарнаГодина,MONTH(AprSun1+4)=4),AprSun1+4,\"\"),IF(AND(YEAR(AprSun1+11)=КалендарнаГодина,MONTH(AprSun1+11)=4),AprSun1+11,\"\"))","v":"2022-04-07"},{"$f":"IF(DAY(AprSun1)=1,IF(AND(YEAR(AprSun1+5)=КалендарнаГодина,MONTH(AprSun1+5)=4),AprSun1+5,\"\"),IF(AND(YEAR(AprSun1+12)=КалендарнаГодина,MONTH(AprSun1+12)=4),AprSun1+12,\"\"))","v":"2022-04-08"},{"$f":"IF(DAY(AprSun1)=1,IF(AND(YEAR(AprSun1+6)=КалендарнаГодина,MONTH(AprSun1+6)=4),AprSun1+6,\"\"),IF(AND(YEAR(AprSun1+13)=КалендарнаГодина,MONTH(AprSun1+13)=4),AprSun1+13,\"\"))","v":"2022-04-09"},{"$f":"IF(DAY(AprSun1)=1,IF(AND(YEAR(AprSun1+7)=КалендарнаГодина,MONTH(AprSun1+7)=4),AprSun1+7,\"\"),IF(AND(YEAR(AprSun1+14)=КалендарнаГодина,MONTH(AprSun1+14)=4),AprSun1+14,\"\"))","v":"2022-04-10"}]
[null,null,{"$f":"IF(DAY(МарНед1)=1,IF(AND(YEAR(МарНед1+8)=КалендарнаГодина,MONTH(МарНед1+8)=3),МарНед1+8,\"\"),IF(AND(YEAR(МарНед1+15)=КалендарнаГодина,MONTH(МарНед1+15)=3),МарНед1+15,\"\"))","v":"2022-03-14"},{"$f":"IF(DAY(МарНед1)=1,IF(AND(YEAR(МарНед1+9)=КалендарнаГодина,MONTH(МарНед1+9)=3),МарНед1+9,\"\"),IF(AND(YEAR(МарНед1+16)=КалендарнаГодина,MONTH(МарНед1+16)=3),МарНед1+16,\"\"))","v":"2022-03-15"},{"$f":"IF(DAY(МарНед1)=1,IF(AND(YEAR(МарНед1+10)=КалендарнаГодина,MONTH(МарНед1+10)=3),МарНед1+10,\"\"),IF(AND(YEAR(МарНед1+17)=КалендарнаГодина,MONTH(МарНед1+17)=3),МарНед1+17,\"\"))","v":"2022-03-16"},{"$f":"IF(DAY(МарНед1)=1,IF(AND(YEAR(МарНед1+11)=КалендарнаГодина,MONTH(МарНед1+11)=3),МарНед1+11,\"\"),IF(AND(YEAR(МарНед1+18)=КалендарнаГодина,MONTH(МарНед1+18)=3),МарНед1+18,\"\"))","v":"2022-03-17"},{"$f":"IF(DAY(МарНед1)=1,IF(AND(YEAR(МарНед1+12)=КалендарнаГодина,MONTH(МарНед1+12)=3),МарНед1+12,\"\"),IF(AND(YEAR(МарНед1+19)=КалендарнаГодина,MONTH(МарНед1+19)=3),МарНед1+19,\"\"))","v":"2022-03-18"},{"$f":"IF(DAY(МарНед1)=1,IF(AND(YEAR(МарНед1+13)=КалендарнаГодина,MONTH(МарНед1+13)=3),МарНед1+13,\"\"),IF(AND(YEAR(МарНед1+20)=КалендарнаГодина,MONTH(МарНед1+20)=3),МарНед1+20,\"\"))","v":"2022-03-19"},{"$f":"IF(DAY(МарНед1)=1,IF(AND(YEAR(МарНед1+14)=КалендарнаГодина,MONTH(МарНед1+14)=3),МарНед1+14,\"\"),IF(AND(YEAR(МарНед1+21)=КалендарнаГодина,MONTH(МарНед1+21)=3),МарНед1+21,\"\"))","v":"2022-03-20"},null,{"$f":"IF(DAY(AprSun1)=1,IF(AND(YEAR(AprSun1+8)=КалендарнаГодина,MONTH(AprSun1+8)=4),AprSun1+8,\"\"),IF(AND(YEAR(AprSun1+15)=КалендарнаГодина,MONTH(AprSun1+15)=4),AprSun1+15,\"\"))","v":"2022-04-11"},{"$f":"IF(DAY(AprSun1)=1,IF(AND(YEAR(AprSun1+9)=КалендарнаГодина,MONTH(AprSun1+9)=4),AprSun1+9,\"\"),IF(AND(YEAR(AprSun1+16)=КалендарнаГодина,MONTH(AprSun1+16)=4),AprSun1+16,\"\"))","v":"2022-04-12"},{"$f":"IF(DAY(AprSun1)=1,IF(AND(YEAR(AprSun1+10)=КалендарнаГодина,MONTH(AprSun1+10)=4),AprSun1+10,\"\"),IF(AND(YEAR(AprSun1+17)=КалендарнаГодина,MONTH(AprSun1+17)=4),AprSun1+17,\"\"))","v":"2022-04-13"},{"$f":"IF(DAY(AprSun1)=1,IF(AND(YEAR(AprSun1+11)=КалендарнаГодина,MONTH(AprSun1+11)=4),AprSun1+11,\"\"),IF(AND(YEAR(AprSun1+18)=КалендарнаГодина,MONTH(AprSun1+18)=4),AprSun1+18,\"\"))","v":"2022-04-14"},{"$f":"IF(DAY(AprSun1)=1,IF(AND(YEAR(AprSun1+12)=КалендарнаГодина,MONTH(AprSun1+12)=4),AprSun1+12,\"\"),IF(AND(YEAR(AprSun1+19)=КалендарнаГодина,MONTH(AprSun1+19)=4),AprSun1+19,\"\"))","v":"2022-04-15"},{"$f":"IF(DAY(AprSun1)=1,IF(AND(YEAR(AprSun1+13)=КалендарнаГодина,MONTH(AprSun1+13)=4),AprSun1+13,\"\"),IF(AND(YEAR(AprSun1+20)=КалендарнаГодина,MONTH(AprSun1+20)=4),AprSun1+20,\"\"))","v":"2022-04-16"},{"$f":"IF(DAY(AprSun1)=1,IF(AND(YEAR(AprSun1+14)=КалендарнаГодина,MONTH(AprSun1+14)=4),AprSun1+14,\"\"),IF(AND(YEAR(AprSun1+21)=КалендарнаГодина,MONTH(AprSun1+21)=4),AprSun1+21,\"\"))","v":"2022-04-17"}]
[null,null,{"$f":"IF(DAY(МарНед1)=1,IF(AND(YEAR(МарНед1+15)=КалендарнаГодина,MONTH(МарНед1+15)=3),МарНед1+15,\"\"),IF(AND(YEAR(МарНед1+22)=КалендарнаГодина,MONTH(МарНед1+22)=3),МарНед1+22,\"\"))","v":"2022-03-21"},{"$f":"IF(DAY(МарНед1)=1,IF(AND(YEAR(МарНед1+16)=КалендарнаГодина,MONTH(МарНед1+16)=3),МарНед1+16,\"\"),IF(AND(YEAR(МарНед1+23)=КалендарнаГодина,MONTH(МарНед1+23)=3),МарНед1+23,\"\"))","v":"2022-03-22"},{"$f":"IF(DAY(МарНед1)=1,IF(AND(YEAR(МарНед1+17)=КалендарнаГодина,MONTH(МарНед1+17)=3),МарНед1+17,\"\"),IF(AND(YEAR(МарНед1+24)=КалендарнаГодина,MONTH(МарНед1+24)=3),МарНед1+24,\"\"))","v":"2022-03-23"},{"$f":"IF(DAY(МарНед1)=1,IF(AND(YEAR(МарНед1+18)=КалендарнаГодина,MONTH(МарНед1+18)=3),МарНед1+18,\"\"),IF(AND(YEAR(МарНед1+25)=КалендарнаГодина,MONTH(МарНед1+25)=3),МарНед1+25,\"\"))","v":"2022-03-24"},{"$f":"IF(DAY(МарНед1)=1,IF(AND(YEAR(МарНед1+19)=КалендарнаГодина,MONTH(МарНед1+19)=3),МарНед1+19,\"\"),IF(AND(YEAR(МарНед1+26)=КалендарнаГодина,MONTH(МарНед1+26)=3),МарНед1+26,\"\"))","v":"2022-03-25"},{"$f":"IF(DAY(МарНед1)=1,IF(AND(YEAR(МарНед1+20)=КалендарнаГодина,MONTH(МарНед1+20)=3),МарНед1+20,\"\"),IF(AND(YEAR(МарНед1+27)=КалендарнаГодина,MONTH(МарНед1+27)=3),МарНед1+27,\"\"))","v":"2022-03-26"},{"$f":"IF(DAY(МарНед1)=1,IF(AND(YEAR(МарНед1+21)=КалендарнаГодина,MONTH(МарНед1+21)=3),МарНед1+21,\"\"),IF(AND(YEAR(МарНед1+28)=КалендарнаГодина,MONTH(МарНед1+28)=3),МарНед1+28,\"\"))","v":"2022-03-27"},null,{"$f":"IF(DAY(AprSun1)=1,IF(AND(YEAR(AprSun1+15)=КалендарнаГодина,MONTH(AprSun1+15)=4),AprSun1+15,\"\"),IF(AND(YEAR(AprSun1+22)=КалендарнаГодина,MONTH(AprSun1+22)=4),AprSun1+22,\"\"))","v":"2022-04-18"},{"$f":"IF(DAY(AprSun1)=1,IF(AND(YEAR(AprSun1+16)=КалендарнаГодина,MONTH(AprSun1+16)=4),AprSun1+16,\"\"),IF(AND(YEAR(AprSun1+23)=КалендарнаГодина,MONTH(AprSun1+23)=4),AprSun1+23,\"\"))","v":"2022-04-19"},{"$f":"IF(DAY(AprSun1)=1,IF(AND(YEAR(AprSun1+17)=КалендарнаГодина,MONTH(AprSun1+17)=4),AprSun1+17,\"\"),IF(AND(YEAR(AprSun1+24)=КалендарнаГодина,MONTH(AprSun1+24)=4),AprSun1+24,\"\"))","v":"2022-04-20"},{"$f":"IF(DAY(AprSun1)=1,IF(AND(YEAR(AprSun1+18)=КалендарнаГодина,MONTH(AprSun1+18)=4),AprSun1+18,\"\"),IF(AND(YEAR(AprSun1+25)=КалендарнаГодина,MONTH(AprSun1+25)=4),AprSun1+25,\"\"))","v":"2022-04-21"},{"$f":"IF(DAY(AprSun1)=1,IF(AND(YEAR(AprSun1+19)=КалендарнаГодина,MONTH(AprSun1+19)=4),AprSun1+19,\"\"),IF(AND(YEAR(AprSun1+26)=КалендарнаГодина,MONTH(AprSun1+26)=4),AprSun1+26,\"\"))","v":"2022-04-22"},{"$f":"IF(DAY(AprSun1)=1,IF(AND(YEAR(AprSun1+20)=КалендарнаГодина,MONTH(AprSun1+20)=4),AprSun1+20,\"\"),IF(AND(YEAR(AprSun1+27)=КалендарнаГодина,MONTH(AprSun1+27)=4),AprSun1+27,\"\"))","v":"2022-04-23"},{"$f":"IF(DAY(AprSun1)=1,IF(AND(YEAR(AprSun1+21)=КалендарнаГодина,MONTH(AprSun1+21)=4),AprSun1+21,\"\"),IF(AND(YEAR(AprSun1+28)=КалендарнаГодина,MONTH(AprSun1+28)=4),AprSun1+28,\"\"))","v":"2022-04-24"}]
[null,null,{"$f":"IF(DAY(МарНед1)=1,IF(AND(YEAR(МарНед1+22)=КалендарнаГодина,MONTH(МарНед1+22)=3),МарНед1+22,\"\"),IF(AND(YEAR(МарНед1+29)=КалендарнаГодина,MONTH(МарНед1+29)=3),МарНед1+29,\"\"))","v":"2022-03-28"},{"$f":"IF(DAY(МарНед1)=1,IF(AND(YEAR(МарНед1+23)=КалендарнаГодина,MONTH(МарНед1+23)=3),МарНед1+23,\"\"),IF(AND(YEAR(МарНед1+30)=КалендарнаГодина,MONTH(МарНед1+30)=3),МарНед1+30,\"\"))","v":"2022-03-29"},{"$f":"IF(DAY(МарНед1)=1,IF(AND(YEAR(МарНед1+24)=КалендарнаГодина,MONTH(МарНед1+24)=3),МарНед1+24,\"\"),IF(AND(YEAR(МарНед1+31)=КалендарнаГодина,MONTH(МарНед1+31)=3),МарНед1+31,\"\"))","v":"2022-03-30"},{"$f":"IF(DAY(МарНед1)=1,IF(AND(YEAR(МарНед1+25)=КалендарнаГодина,MONTH(МарНед1+25)=3),МарНед1+25,\"\"),IF(AND(YEAR(МарНед1+32)=КалендарнаГодина,MONTH(МарНед1+32)=3),МарНед1+32,\"\"))","v":"2022-03-31"},{"$f":"IF(DAY(МарНед1)=1,IF(AND(YEAR(МарНед1+26)=КалендарнаГодина,MONTH(МарНед1+26)=3),МарНед1+26,\"\"),IF(AND(YEAR(МарНед1+33)=КалендарнаГодина,MONTH(МарНед1+33)=3),МарНед1+33,\"\"))","v":""},{"$f":"IF(DAY(МарНед1)=1,IF(AND(YEAR(МарНед1+27)=КалендарнаГодина,MONTH(МарНед1+27)=3),МарНед1+27,\"\"),IF(AND(YEAR(МарНед1+34)=КалендарнаГодина,MONTH(МарНед1+34)=3),МарНед1+34,\"\"))","v":""},{"$f":"IF(DAY(МарНед1)=1,IF(AND(YEAR(МарНед1+28)=КалендарнаГодина,MONTH(МарНед1+28)=3),МарНед1+28,\"\"),IF(AND(YEAR(МарНед1+35)=КалендарнаГодина,MONTH(МарНед1+35)=3),МарНед1+35,\"\"))","v":""},null,{"$f":"IF(DAY(AprSun1)=1,IF(AND(YEAR(AprSun1+22)=КалендарнаГодина,MONTH(AprSun1+22)=4),AprSun1+22,\"\"),IF(AND(YEAR(AprSun1+29)=КалендарнаГодина,MONTH(AprSun1+29)=4),AprSun1+29,\"\"))","v":"2022-04-25"},{"$f":"IF(DAY(AprSun1)=1,IF(AND(YEAR(AprSun1+23)=КалендарнаГодина,MONTH(AprSun1+23)=4),AprSun1+23,\"\"),IF(AND(YEAR(AprSun1+30)=КалендарнаГодина,MONTH(AprSun1+30)=4),AprSun1+30,\"\"))","v":"2022-04-26"},{"$f":"IF(DAY(AprSun1)=1,IF(AND(YEAR(AprSun1+24)=КалендарнаГодина,MONTH(AprSun1+24)=4),AprSun1+24,\"\"),IF(AND(YEAR(AprSun1+31)=КалендарнаГодина,MONTH(AprSun1+31)=4),AprSun1+31,\"\"))","v":"2022-04-27"},{"$f":"IF(DAY(AprSun1)=1,IF(AND(YEAR(AprSun1+25)=КалендарнаГодина,MONTH(AprSun1+25)=4),AprSun1+25,\"\"),IF(AND(YEAR(AprSun1+32)=КалендарнаГодина,MONTH(AprSun1+32)=4),AprSun1+32,\"\"))","v":"2022-04-28"},{"$f":"IF(DAY(AprSun1)=1,IF(AND(YEAR(AprSun1+26)=КалендарнаГодина,MONTH(AprSun1+26)=4),AprSun1+26,\"\"),IF(AND(YEAR(AprSun1+33)=КалендарнаГодина,MONTH(AprSun1+33)=4),AprSun1+33,\"\"))","v":"2022-04-29"},{"$f":"IF(DAY(AprSun1)=1,IF(AND(YEAR(AprSun1+27)=КалендарнаГодина,MONTH(AprSun1+27)=4),AprSun1+27,\"\"),IF(AND(YEAR(AprSun1+34)=КалендарнаГодина,MONTH(AprSun1+34)=4),AprSun1+34,\"\"))","v":"2022-04-30"},{"$f":"IF(DAY(AprSun1)=1,IF(AND(YEAR(AprSun1+28)=КалендарнаГодина,MONTH(AprSun1+28)=4),AprSun1+28,\"\"),IF(AND(YEAR(AprSun1+35)=КалендарнаГодина,MONTH(AprSun1+35)=4),AprSun1+35,\"\"))","v":""}]
[null,null,{"$f":"IF(DAY(МарНед1)=1,IF(AND(YEAR(МарНед1+29)=КалендарнаГодина,MONTH(МарНед1+29)=3),МарНед1+29,\"\"),IF(AND(YEAR(МарНед1+36)=КалендарнаГодина,MONTH(МарНед1+36)=3),МарНед1+36,\"\"))","v":""},{"$f":"IF(DAY(МарНед1)=1,IF(AND(YEAR(МарНед1+30)=КалендарнаГодина,MONTH(МарНед1+30)=3),МарНед1+30,\"\"),IF(AND(YEAR(МарНед1+37)=КалендарнаГодина,MONTH(МарНед1+37)=3),МарНед1+37,\"\"))","v":""},{"$f":"IF(DAY(МарНед1)=1,IF(AND(YEAR(МарНед1+31)=КалендарнаГодина,MONTH(МарНед1+31)=3),МарНед1+31,\"\"),IF(AND(YEAR(МарНед1+38)=КалендарнаГодина,MONTH(МарНед1+38)=3),МарНед1+38,\"\"))","v":""},{"$f":"IF(DAY(МарНед1)=1,IF(AND(YEAR(МарНед1+32)=КалендарнаГодина,MONTH(МарНед1+32)=3),МарНед1+32,\"\"),IF(AND(YEAR(МарНед1+39)=КалендарнаГодина,MONTH(МарНед1+39)=3),МарНед1+39,\"\"))","v":""},{"$f":"IF(DAY(МарНед1)=1,IF(AND(YEAR(МарНед1+33)=КалендарнаГодина,MONTH(МарНед1+33)=3),МарНед1+33,\"\"),IF(AND(YEAR(МарНед1+40)=КалендарнаГодина,MONTH(МарНед1+40)=3),МарНед1+40,\"\"))","v":""},{"$f":"IF(DAY(МарНед1)=1,IF(AND(YEAR(МарНед1+34)=КалендарнаГодина,MONTH(МарНед1+34)=3),МарНед1+34,\"\"),IF(AND(YEAR(МарНед1+41)=КалендарнаГодина,MONTH(МарНед1+41)=3),МарНед1+41,\"\"))","v":""},{"$f":"IF(DAY(МарНед1)=1,IF(AND(YEAR(МарНед1+35)=КалендарнаГодина,MONTH(МарНед1+35)=3),МарНед1+35,\"\"),IF(AND(YEAR(МарНед1+42)=КалендарнаГодина,MONTH(МарНед1+42)=3),МарНед1+42,\"\"))","v":""},null,{"$f":"IF(DAY(AprSun1)=1,IF(AND(YEAR(AprSun1+29)=КалендарнаГодина,MONTH(AprSun1+29)=4),AprSun1+29,\"\"),IF(AND(YEAR(AprSun1+36)=КалендарнаГодина,MONTH(AprSun1+36)=4),AprSun1+36,\"\"))","v":""},{"$f":"IF(DAY(AprSun1)=1,IF(AND(YEAR(AprSun1+30)=КалендарнаГодина,MONTH(AprSun1+30)=4),AprSun1+30,\"\"),IF(AND(YEAR(AprSun1+37)=КалендарнаГодина,MONTH(AprSun1+37)=4),AprSun1+37,\"\"))","v":""},{"$f":"IF(DAY(AprSun1)=1,IF(AND(YEAR(AprSun1+31)=КалендарнаГодина,MONTH(AprSun1+31)=4),AprSun1+31,\"\"),IF(AND(YEAR(AprSun1+38)=КалендарнаГодина,MONTH(AprSun1+38)=4),AprSun1+38,\"\"))","v":""},{"$f":"IF(DAY(AprSun1)=1,IF(AND(YEAR(AprSun1+32)=КалендарнаГодина,MONTH(AprSun1+32)=4),AprSun1+32,\"\"),IF(AND(YEAR(AprSun1+39)=КалендарнаГодина,MONTH(AprSun1+39)=4),AprSun1+39,\"\"))","v":""},{"$f":"IF(DAY(AprSun1)=1,IF(AND(YEAR(AprSun1+33)=КалендарнаГодина,MONTH(AprSun1+33)=4),AprSun1+33,\"\"),IF(AND(YEAR(AprSun1+40)=КалендарнаГодина,MONTH(AprSun1+40)=4),AprSun1+40,\"\"))","v":""},{"$f":"IF(DAY(AprSun1)=1,IF(AND(YEAR(AprSun1+34)=КалендарнаГодина,MONTH(AprSun1+34)=4),AprSun1+34,\"\"),IF(AND(YEAR(AprSun1+41)=КалендарнаГодина,MONTH(AprSun1+41)=4),AprSun1+41,\"\"))","v":""},{"$f":"IF(DAY(AprSun1)=1,IF(AND(YEAR(AprSun1+35)=КалендарнаГодина,MONTH(AprSun1+35)=4),AprSun1+35,\"\"),IF(AND(YEAR(AprSun1+42)=КалендарнаГодина,MONTH(AprSun1+42)=4),AprSun1+42,\"\"))","v":""}]
[]
["Етикетът за май е в клетка C21, а за юни е в клетка К21",null,"МАЙ",{"$nulls":7},"ЮНИ"]
["Таблицата на календара за май се намират в клетките от С22 до I28, а таблицата на календара за юни в клетки от K22 до Q28. Следващата инструкция е в клетка A30.",null,"ПОН","ВТО","СРЯ","ЧЕТ","ПЕТ","СЪБ","НЕД",null,"ПОН","ВТО","СРЯ","ЧЕТ","ПЕТ","СЪБ","НЕД"]
[null,null,{"$f":"IF(DAY(МайНед1)=1,\"\",IF(AND(YEAR(МайНед1+1)=КалендарнаГодина,MONTH(МайНед1+1)=5),МайНед1+1,\"\"))","v":""},{"$f":"IF(DAY(МайНед1)=1,\"\",IF(AND(YEAR(МайНед1+2)=КалендарнаГодина,MONTH(МайНед1+2)=5),МайНед1+2,\"\"))","v":""},{"$f":"IF(DAY(МайНед1)=1,\"\",IF(AND(YEAR(МайНед1+3)=КалендарнаГодина,MONTH(МайНед1+3)=5),МайНед1+3,\"\"))","v":""},{"$f":"IF(DAY(МайНед1)=1,\"\",IF(AND(YEAR(МайНед1+4)=КалендарнаГодина,MONTH(МайНед1+4)=5),МайНед1+4,\"\"))","v":""},{"$f":"IF(DAY(МайНед1)=1,\"\",IF(AND(YEAR(МайНед1+5)=КалендарнаГодина,MONTH(МайНед1+5)=5),МайНед1+5,\"\"))","v":""},{"$f":"IF(DAY(МайНед1)=1,\"\",IF(AND(YEAR(МайНед1+6)=КалендарнаГодина,MONTH(МайНед1+6)=5),МайНед1+6,\"\"))","v":""},{"$f":"IF(DAY(МайНед1)=1,IF(AND(YEAR(МайНед1)=КалендарнаГодина,MONTH(МайНед1)=5),МайНед1,\"\"),IF(AND(YEAR(МайНед1+7)=КалендарнаГодина,MONTH(МайНед1+7)=5),МайНед1+7,\"\"))","v":"2022-05-01"},null,{"$f":"IF(DAY(ЮнНед1)=1,\"\",IF(AND(YEAR(ЮнНед1+1)=КалендарнаГодина,MONTH(ЮнНед1+1)=6),ЮнНед1+1,\"\"))","v":""},{"$f":"IF(DAY(ЮнНед1)=1,\"\",IF(AND(YEAR(ЮнНед1+2)=КалендарнаГодина,MONTH(ЮнНед1+2)=6),ЮнНед1+2,\"\"))","v":""},{"$f":"IF(DAY(ЮнНед1)=1,\"\",IF(AND(YEAR(ЮнНед1+3)=КалендарнаГодина,MONTH(ЮнНед1+3)=6),ЮнНед1+3,\"\"))","v":"2022-06-01"},{"$f":"IF(DAY(ЮнНед1)=1,\"\",IF(AND(YEAR(ЮнНед1+4)=КалендарнаГодина,MONTH(ЮнНед1+4)=6),ЮнНед1+4,\"\"))","v":"2022-06-02"},{"$f":"IF(DAY(ЮнНед1)=1,\"\",IF(AND(YEAR(ЮнНед1+5)=КалендарнаГодина,MONTH(ЮнНед1+5)=6),ЮнНед1+5,\"\"))","v":"2022-06-03"},{"$f":"IF(DAY(ЮнНед1)=1,\"\",IF(AND(YEAR(ЮнНед1+6)=КалендарнаГодина,MONTH(ЮнНед1+6)=6),ЮнНед1+6,\"\"))","v":"2022-06-04"},{"$f":"IF(DAY(ЮнНед1)=1,IF(AND(YEAR(ЮнНед1)=КалендарнаГодина,MONTH(ЮнНед1)=6),ЮнНед1,\"\"),IF(AND(YEAR(ЮнНед1+7)=КалендарнаГодина,MONTH(ЮнНед1+7)=6),ЮнНед1+7,\"\"))","v":"2022-06-05"}]
[null,null,{"$f":"IF(DAY(МайНед1)=1,IF(AND(YEAR(МайНед1+1)=КалендарнаГодина,MONTH(МайНед1+1)=5),МайНед1+1,\"\"),IF(AND(YEAR(МайНед1+8)=КалендарнаГодина,MONTH(МайНед1+8)=5),МайНед1+8,\"\"))","v":"2022-05-02"},{"$f":"IF(DAY(МайНед1)=1,IF(AND(YEAR(МайНед1+2)=КалендарнаГодина,MONTH(МайНед1+2)=5),МайНед1+2,\"\"),IF(AND(YEAR(МайНед1+9)=КалендарнаГодина,MONTH(МайНед1+9)=5),МайНед1+9,\"\"))","v":"2022-05-03"},{"$f":"IF(DAY(МайНед1)=1,IF(AND(YEAR(МайНед1+3)=КалендарнаГодина,MONTH(МайНед1+3)=5),МайНед1+3,\"\"),IF(AND(YEAR(МайНед1+10)=КалендарнаГодина,MONTH(МайНед1+10)=5),МайНед1+10,\"\"))","v":"2022-05-04"},{"$f":"IF(DAY(МайНед1)=1,IF(AND(YEAR(МайНед1+4)=КалендарнаГодина,MONTH(МайНед1+4)=5),МайНед1+4,\"\"),IF(AND(YEAR(МайНед1+11)=КалендарнаГодина,MONTH(МайНед1+11)=5),МайНед1+11,\"\"))","v":"2022-05-05"},{"$f":"IF(DAY(МайНед1)=1,IF(AND(YEAR(МайНед1+5)=КалендарнаГодина,MONTH(МайНед1+5)=5),МайНед1+5,\"\"),IF(AND(YEAR(МайНед1+12)=КалендарнаГодина,MONTH(МайНед1+12)=5),МайНед1+12,\"\"))","v":"2022-05-06"},{"$f":"IF(DAY(МайНед1)=1,IF(AND(YEAR(МайНед1+6)=КалендарнаГодина,MONTH(МайНед1+6)=5),МайНед1+6,\"\"),IF(AND(YEAR(МайНед1+13)=КалендарнаГодина,MONTH(МайНед1+13)=5),МайНед1+13,\"\"))","v":"2022-05-07"},{"$f":"IF(DAY(МайНед1)=1,IF(AND(YEAR(МайНед1+7)=КалендарнаГодина,MONTH(МайНед1+7)=5),МайНед1+7,\"\"),IF(AND(YEAR(МайНед1+14)=КалендарнаГодина,MONTH(МайНед1+14)=5),МайНед1+14,\"\"))","v":"2022-05-08"},null,{"$f":"IF(DAY(ЮнНед1)=1,IF(AND(YEAR(ЮнНед1+1)=КалендарнаГодина,MONTH(ЮнНед1+1)=6),ЮнНед1+1,\"\"),IF(AND(YEAR(ЮнНед1+8)=КалендарнаГодина,MONTH(ЮнНед1+8)=6),ЮнНед1+8,\"\"))","v":"2022-06-06"},{"$f":"IF(DAY(ЮнНед1)=1,IF(AND(YEAR(ЮнНед1+2)=КалендарнаГодина,MONTH(ЮнНед1+2)=6),ЮнНед1+2,\"\"),IF(AND(YEAR(ЮнНед1+9)=КалендарнаГодина,MONTH(ЮнНед1+9)=6),ЮнНед1+9,\"\"))","v":"2022-06-07"},{"$f":"IF(DAY(ЮнНед1)=1,IF(AND(YEAR(ЮнНед1+3)=КалендарнаГодина,MONTH(ЮнНед1+3)=6),ЮнНед1+3,\"\"),IF(AND(YEAR(ЮнНед1+10)=КалендарнаГодина,MONTH(ЮнНед1+10)=6),ЮнНед1+10,\"\"))","v":"2022-06-08"},{"$f":"IF(DAY(ЮнНед1)=1,IF(AND(YEAR(ЮнНед1+4)=КалендарнаГодина,MONTH(ЮнНед1+4)=6),ЮнНед1+4,\"\"),IF(AND(YEAR(ЮнНед1+11)=КалендарнаГодина,MONTH(ЮнНед1+11)=6),ЮнНед1+11,\"\"))","v":"2022-06-09"},{"$f":"IF(DAY(ЮнНед1)=1,IF(AND(YEAR(ЮнНед1+5)=КалендарнаГодина,MONTH(ЮнНед1+5)=6),ЮнНед1+5,\"\"),IF(AND(YEAR(ЮнНед1+12)=КалендарнаГодина,MONTH(ЮнНед1+12)=6),ЮнНед1+12,\"\"))","v":"2022-06-10"},{"$f":"IF(DAY(ЮнНед1)=1,IF(AND(YEAR(ЮнНед1+6)=КалендарнаГодина,MONTH(ЮнНед1+6)=6),ЮнНед1+6,\"\"),IF(AND(YEAR(ЮнНед1+13)=КалендарнаГодина,MONTH(ЮнНед1+13)=6),ЮнНед1+13,\"\"))","v":"2022-06-11"},{"$f":"IF(DAY(ЮнНед1)=1,IF(AND(YEAR(ЮнНед1+7)=КалендарнаГодина,MONTH(ЮнНед1+7)=6),ЮнНед1+7,\"\"),IF(AND(YEAR(ЮнНед1+14)=КалендарнаГодина,MONTH(ЮнНед1+14)=6),ЮнНед1+14,\"\"))","v":"2022-06-12"}]
[null,null,{"$f":"IF(DAY(МайНед1)=1,IF(AND(YEAR(МайНед1+8)=КалендарнаГодина,MONTH(МайНед1+8)=5),МайНед1+8,\"\"),IF(AND(YEAR(МайНед1+15)=КалендарнаГодина,MONTH(МайНед1+15)=5),МайНед1+15,\"\"))","v":"2022-05-09"},{"$f":"IF(DAY(МайНед1)=1,IF(AND(YEAR(МайНед1+9)=КалендарнаГодина,MONTH(МайНед1+9)=5),МайНед1+9,\"\"),IF(AND(YEAR(МайНед1+16)=КалендарнаГодина,MONTH(МайНед1+16)=5),МайНед1+16,\"\"))","v":"2022-05-10"},{"$f":"IF(DAY(МайНед1)=1,IF(AND(YEAR(МайНед1+10)=КалендарнаГодина,MONTH(МайНед1+10)=5),МайНед1+10,\"\"),IF(AND(YEAR(МайНед1+17)=КалендарнаГодина,MONTH(МайНед1+17)=5),МайНед1+17,\"\"))","v":"2022-05-11"},{"$f":"IF(DAY(МайНед1)=1,IF(AND(YEAR(МайНед1+11)=КалендарнаГодина,MONTH(МайНед1+11)=5),МайНед1+11,\"\"),IF(AND(YEAR(МайНед1+18)=КалендарнаГодина,MONTH(МайНед1+18)=5),МайНед1+18,\"\"))","v":"2022-05-12"},{"$f":"IF(DAY(МайНед1)=1,IF(AND(YEAR(МайНед1+12)=КалендарнаГодина,MONTH(МайНед1+12)=5),МайНед1+12,\"\"),IF(AND(YEAR(МайНед1+19)=КалендарнаГодина,MONTH(МайНед1+19)=5),МайНед1+19,\"\"))","v":"2022-05-13"},{"$f":"IF(DAY(МайНед1)=1,IF(AND(YEAR(МайНед1+13)=КалендарнаГодина,MONTH(МайНед1+13)=5),МайНед1+13,\"\"),IF(AND(YEAR(МайНед1+20)=КалендарнаГодина,MONTH(МайНед1+20)=5),МайНед1+20,\"\"))","v":"2022-05-14"},{"$f":"IF(DAY(МайНед1)=1,IF(AND(YEAR(МайНед1+14)=КалендарнаГодина,MONTH(МайНед1+14)=5),МайНед1+14,\"\"),IF(AND(YEAR(МайНед1+21)=КалендарнаГодина,MONTH(МайНед1+21)=5),МайНед1+21,\"\"))","v":"2022-05-15"},null,{"$f":"IF(DAY(ЮнНед1)=1,IF(AND(YEAR(ЮнНед1+8)=КалендарнаГодина,MONTH(ЮнНед1+8)=6),ЮнНед1+8,\"\"),IF(AND(YEAR(ЮнНед1+15)=КалендарнаГодина,MONTH(ЮнНед1+15)=6),ЮнНед1+15,\"\"))","v":"2022-06-13"},{"$f":"IF(DAY(ЮнНед1)=1,IF(AND(YEAR(ЮнНед1+9)=КалендарнаГодина,MONTH(ЮнНед1+9)=6),ЮнНед1+9,\"\"),IF(AND(YEAR(ЮнНед1+16)=КалендарнаГодина,MONTH(ЮнНед1+16)=6),ЮнНед1+16,\"\"))","v":"2022-06-14"},{"$f":"IF(DAY(ЮнНед1)=1,IF(AND(YEAR(ЮнНед1+10)=КалендарнаГодина,MONTH(ЮнНед1+10)=6),ЮнНед1+10,\"\"),IF(AND(YEAR(ЮнНед1+17)=КалендарнаГодина,MONTH(ЮнНед1+17)=6),ЮнНед1+17,\"\"))","v":"2022-06-15"},{"$f":"IF(DAY(ЮнНед1)=1,IF(AND(YEAR(ЮнНед1+11)=КалендарнаГодина,MONTH(ЮнНед1+11)=6),ЮнНед1+11,\"\"),IF(AND(YEAR(ЮнНед1+18)=КалендарнаГодина,MONTH(ЮнНед1+18)=6),ЮнНед1+18,\"\"))","v":"2022-06-16"},{"$f":"IF(DAY(ЮнНед1)=1,IF(AND(YEAR(ЮнНед1+12)=КалендарнаГодина,MONTH(ЮнНед1+12)=6),ЮнНед1+12,\"\"),IF(AND(YEAR(ЮнНед1+19)=КалендарнаГодина,MONTH(ЮнНед1+19)=6),ЮнНед1+19,\"\"))","v":"2022-06-17"},{"$f":"IF(DAY(ЮнНед1)=1,IF(AND(YEAR(ЮнНед1+13)=КалендарнаГодина,MONTH(ЮнНед1+13)=6),ЮнНед1+13,\"\"),IF(AND(YEAR(ЮнНед1+20)=КалендарнаГодина,MONTH(ЮнНед1+20)=6),ЮнНед1+20,\"\"))","v":"2022-06-18"},{"$f":"IF(DAY(ЮнНед1)=1,IF(AND(YEAR(ЮнНед1+14)=КалендарнаГодина,MONTH(ЮнНед1+14)=6),ЮнНед1+14,\"\"),IF(AND(YEAR(ЮнНед1+21)=КалендарнаГодина,MONTH(ЮнНед1+21)=6),ЮнНед1+21,\"\"))","v":"2022-06-19"}]
[null,null,{"$f":"IF(DAY(МайНед1)=1,IF(AND(YEAR(МайНед1+15)=КалендарнаГодина,MONTH(МайНед1+15)=5),МайНед1+15,\"\"),IF(AND(YEAR(МайНед1+22)=КалендарнаГодина,MONTH(МайНед1+22)=5),МайНед1+22,\"\"))","v":"2022-05-16"},{"$f":"IF(DAY(МайНед1)=1,IF(AND(YEAR(МайНед1+16)=КалендарнаГодина,MONTH(МайНед1+16)=5),МайНед1+16,\"\"),IF(AND(YEAR(МайНед1+23)=КалендарнаГодина,MONTH(МайНед1+23)=5),МайНед1+23,\"\"))","v":"2022-05-17"},{"$f":"IF(DAY(МайНед1)=1,IF(AND(YEAR(МайНед1+17)=КалендарнаГодина,MONTH(МайНед1+17)=5),МайНед1+17,\"\"),IF(AND(YEAR(МайНед1+24)=КалендарнаГодина,MONTH(МайНед1+24)=5),МайНед1+24,\"\"))","v":"2022-05-18"},{"$f":"IF(DAY(МайНед1)=1,IF(AND(YEAR(МайНед1+18)=КалендарнаГодина,MONTH(МайНед1+18)=5),МайНед1+18,\"\"),IF(AND(YEAR(МайНед1+25)=КалендарнаГодина,MONTH(МайНед1+25)=5),МайНед1+25,\"\"))","v":"2022-05-19"},{"$f":"IF(DAY(МайНед1)=1,IF(AND(YEAR(МайНед1+19)=КалендарнаГодина,MONTH(МайНед1+19)=5),МайНед1+19,\"\"),IF(AND(YEAR(МайНед1+26)=КалендарнаГодина,MONTH(МайНед1+26)=5),МайНед1+26,\"\"))","v":"2022-05-20"},{"$f":"IF(DAY(МайНед1)=1,IF(AND(YEAR(МайНед1+20)=КалендарнаГодина,MONTH(МайНед1+20)=5),МайНед1+20,\"\"),IF(AND(YEAR(МайНед1+27)=КалендарнаГодина,MONTH(МайНед1+27)=5),МайНед1+27,\"\"))","v":"2022-05-21"},{"$f":"IF(DAY(МайНед1)=1,IF(AND(YEAR(МайНед1+21)=КалендарнаГодина,MONTH(МайНед1+21)=5),МайНед1+21,\"\"),IF(AND(YEAR(МайНед1+28)=КалендарнаГодина,MONTH(МайНед1+28)=5),МайНед1+28,\"\"))","v":"2022-05-22"},null,{"$f":"IF(DAY(ЮнНед1)=1,IF(AND(YEAR(ЮнНед1+15)=КалендарнаГодина,MONTH(ЮнНед1+15)=6),ЮнНед1+15,\"\"),IF(AND(YEAR(ЮнНед1+22)=КалендарнаГодина,MONTH(ЮнНед1+22)=6),ЮнНед1+22,\"\"))","v":"2022-06-20"},{"$f":"IF(DAY(ЮнНед1)=1,IF(AND(YEAR(ЮнНед1+16)=КалендарнаГодина,MONTH(ЮнНед1+16)=6),ЮнНед1+16,\"\"),IF(AND(YEAR(ЮнНед1+23)=КалендарнаГодина,MONTH(ЮнНед1+23)=6),ЮнНед1+23,\"\"))","v":"2022-06-21"},{"$f":"IF(DAY(ЮнНед1)=1,IF(AND(YEAR(ЮнНед1+17)=КалендарнаГодина,MONTH(ЮнНед1+17)=6),ЮнНед1+17,\"\"),IF(AND(YEAR(ЮнНед1+24)=КалендарнаГодина,MONTH(ЮнНед1+24)=6),ЮнНед1+24,\"\"))","v":"2022-06-22"},{"$f":"IF(DAY(ЮнНед1)=1,IF(AND(YEAR(ЮнНед1+18)=КалендарнаГодина,MONTH(ЮнНед1+18)=6),ЮнНед1+18,\"\"),IF(AND(YEAR(ЮнНед1+25)=КалендарнаГодина,MONTH(ЮнНед1+25)=6),ЮнНед1+25,\"\"))","v":"2022-06-23"},{"$f":"IF(DAY(ЮнНед1)=1,IF(AND(YEAR(ЮнНед1+19)=КалендарнаГодина,MONTH(ЮнНед1+19)=6),ЮнНед1+19,\"\"),IF(AND(YEAR(ЮнНед1+26)=КалендарнаГодина,MONTH(ЮнНед1+26)=6),ЮнНед1+26,\"\"))","v":"2022-06-24"},{"$f":"IF(DAY(ЮнНед1)=1,IF(AND(YEAR(ЮнНед1+20)=КалендарнаГодина,MONTH(ЮнНед1+20)=6),ЮнНед1+20,\"\"),IF(AND(YEAR(ЮнНед1+27)=КалендарнаГодина,MONTH(ЮнНед1+27)=6),ЮнНед1+27,\"\"))","v":"2022-06-25"},{"$f":"IF(DAY(ЮнНед1)=1,IF(AND(YEAR(ЮнНед1+21)=КалендарнаГодина,MONTH(ЮнНед1+21)=6),ЮнНед1+21,\"\"),IF(AND(YEAR(ЮнНед1+28)=КалендарнаГодина,MONTH(ЮнНед1+28)=6),ЮнНед1+28,\"\"))","v":"2022-06-26"}]
[null,null,{"$f":"IF(DAY(МайНед1)=1,IF(AND(YEAR(МайНед1+22)=КалендарнаГодина,MONTH(МайНед1+22)=5),МайНед1+22,\"\"),IF(AND(YEAR(МайНед1+29)=КалендарнаГодина,MONTH(МайНед1+29)=5),МайНед1+29,\"\"))","v":"2022-05-23"},{"$f":"IF(DAY(МайНед1)=1,IF(AND(YEAR(МайНед1+23)=КалендарнаГодина,MONTH(МайНед1+23)=5),МайНед1+23,\"\"),IF(AND(YEAR(МайНед1+30)=КалендарнаГодина,MONTH(МайНед1+30)=5),МайНед1+30,\"\"))","v":"2022-05-24"},{"$f":"IF(DAY(МайНед1)=1,IF(AND(YEAR(МайНед1+24)=КалендарнаГодина,MONTH(МайНед1+24)=5),МайНед1+24,\"\"),IF(AND(YEAR(МайНед1+31)=КалендарнаГодина,MONTH(МайНед1+31)=5),МайНед1+31,\"\"))","v":"2022-05-25"},{"$f":"IF(DAY(МайНед1)=1,IF(AND(YEAR(МайНед1+25)=КалендарнаГодина,MONTH(МайНед1+25)=5),МайНед1+25,\"\"),IF(AND(YEAR(МайНед1+32)=КалендарнаГодина,MONTH(МайНед1+32)=5),МайНед1+32,\"\"))","v":"2022-05-26"},{"$f":"IF(DAY(МайНед1)=1,IF(AND(YEAR(МайНед1+26)=КалендарнаГодина,MONTH(МайНед1+26)=5),МайНед1+26,\"\"),IF(AND(YEAR(МайНед1+33)=КалендарнаГодина,MONTH(МайНед1+33)=5),МайНед1+33,\"\"))","v":"2022-05-27"},{"$f":"IF(DAY(МайНед1)=1,IF(AND(YEAR(МайНед1+27)=КалендарнаГодина,MONTH(МайНед1+27)=5),МайНед1+27,\"\"),IF(AND(YEAR(МайНед1+34)=КалендарнаГодина,MONTH(МайНед1+34)=5),МайНед1+34,\"\"))","v":"2022-05-28"},{"$f":"IF(DAY(МайНед1)=1,IF(AND(YEAR(МайНед1+28)=КалендарнаГодина,MONTH(МайНед1+28)=5),МайНед1+28,\"\"),IF(AND(YEAR(МайНед1+35)=КалендарнаГодина,MONTH(МайНед1+35)=5),МайНед1+35,\"\"))","v":"2022-05-29"},null,{"$f":"IF(DAY(ЮнНед1)=1,IF(AND(YEAR(ЮнНед1+22)=КалендарнаГодина,MONTH(ЮнНед1+22)=6),ЮнНед1+22,\"\"),IF(AND(YEAR(ЮнНед1+29)=КалендарнаГодина,MONTH(ЮнНед1+29)=6),ЮнНед1+29,\"\"))","v":"2022-06-27"},{"$f":"IF(DAY(ЮнНед1)=1,IF(AND(YEAR(ЮнНед1+23)=КалендарнаГодина,MONTH(ЮнНед1+23)=6),ЮнНед1+23,\"\"),IF(AND(YEAR(ЮнНед1+30)=КалендарнаГодина,MONTH(ЮнНед1+30)=6),ЮнНед1+30,\"\"))","v":"2022-06-28"},{"$f":"IF(DAY(ЮнНед1)=1,IF(AND(YEAR(ЮнНед1+24)=КалендарнаГодина,MONTH(ЮнНед1+24)=6),ЮнНед1+24,\"\"),IF(AND(YEAR(ЮнНед1+31)=КалендарнаГодина,MONTH(ЮнНед1+31)=6),ЮнНед1+31,\"\"))","v":"2022-06-29"},{"$f":"IF(DAY(ЮнНед1)=1,IF(AND(YEAR(ЮнНед1+25)=КалендарнаГодина,MONTH(ЮнНед1+25)=6),ЮнНед1+25,\"\"),IF(AND(YEAR(ЮнНед1+32)=КалендарнаГодина,MONTH(ЮнНед1+32)=6),ЮнНед1+32,\"\"))","v":"2022-06-30"},{"$f":"IF(DAY(ЮнНед1)=1,IF(AND(YEAR(ЮнНед1+26)=КалендарнаГодина,MONTH(ЮнНед1+26)=6),ЮнНед1+26,\"\"),IF(AND(YEAR(ЮнНед1+33)=КалендарнаГодина,MONTH(ЮнНед1+33)=6),ЮнНед1+33,\"\"))","v":""},{"$f":"IF(DAY(ЮнНед1)=1,IF(AND(YEAR(ЮнНед1+27)=КалендарнаГодина,MONTH(ЮнНед1+27)=6),ЮнНед1+27,\"\"),IF(AND(YEAR(ЮнНед1+34)=КалендарнаГодина,MONTH(ЮнНед1+34)=6),ЮнНед1+34,\"\"))","v":""},{"$f":"IF(DAY(ЮнНед1)=1,IF(AND(YEAR(ЮнНед1+28)=КалендарнаГодина,MONTH(ЮнНед1+28)=6),ЮнНед1+28,\"\"),IF(AND(YEAR(ЮнНед1+35)=КалендарнаГодина,MONTH(ЮнНед1+35)=6),ЮнНед1+35,\"\"))","v":""}]
[null,null,{"$f":"IF(DAY(МайНед1)=1,IF(AND(YEAR(МайНед1+29)=КалендарнаГодина,MONTH(МайНед1+29)=5),МайНед1+29,\"\"),IF(AND(YEAR(МайНед1+36)=КалендарнаГодина,MONTH(МайНед1+36)=5),МайНед1+36,\"\"))","v":"2022-05-30"},{"$f":"IF(DAY(МайНед1)=1,IF(AND(YEAR(МайНед1+30)=КалендарнаГодина,MONTH(МайНед1+30)=5),МайНед1+30,\"\"),IF(AND(YEAR(МайНед1+37)=КалендарнаГодина,MONTH(МайНед1+37)=5),МайНед1+37,\"\"))","v":"2022-05-31"},{"$f":"IF(DAY(МайНед1)=1,IF(AND(YEAR(МайНед1+31)=КалендарнаГодина,MONTH(МайНед1+31)=5),МайНед1+31,\"\"),IF(AND(YEAR(МайНед1+38)=КалендарнаГодина,MONTH(МайНед1+38)=5),МайНед1+38,\"\"))","v":""},{"$f":"IF(DAY(МайНед1)=1,IF(AND(YEAR(МайНед1+32)=КалендарнаГодина,MONTH(МайНед1+32)=5),МайНед1+32,\"\"),IF(AND(YEAR(МайНед1+39)=КалендарнаГодина,MONTH(МайНед1+39)=5),МайНед1+39,\"\"))","v":""},{"$f":"IF(DAY(МайНед1)=1,IF(AND(YEAR(МайНед1+33)=КалендарнаГодина,MONTH(МайНед1+33)=5),МайНед1+33,\"\"),IF(AND(YEAR(МайНед1+40)=КалендарнаГодина,MONTH(МайНед1+40)=5),МайНед1+40,\"\"))","v":""},{"$f":"IF(DAY(МайНед1)=1,IF(AND(YEAR(МайНед1+34)=КалендарнаГодина,MONTH(МайНед1+34)=5),МайНед1+34,\"\"),IF(AND(YEAR(МайНед1+41)=КалендарнаГодина,MONTH(МайНед1+41)=5),МайНед1+41,\"\"))","v":""},{"$f":"IF(DAY(МайНед1)=1,IF(AND(YEAR(МайНед1+35)=КалендарнаГодина,MONTH(МайНед1+35)=5),МайНед1+35,\"\"),IF(AND(YEAR(МайНед1+42)=КалендарнаГодина,MONTH(МайНед1+42)=5),МайНед1+42,\"\"))","v":""},null,{"$f":"IF(DAY(ЮнНед1)=1,IF(AND(YEAR(ЮнНед1+29)=КалендарнаГодина,MONTH(ЮнНед1+29)=6),ЮнНед1+29,\"\"),IF(AND(YEAR(ЮнНед1+36)=КалендарнаГодина,MONTH(ЮнНед1+36)=6),ЮнНед1+36,\"\"))","v":""},{"$f":"IF(DAY(ЮнНед1)=1,IF(AND(YEAR(ЮнНед1+30)=КалендарнаГодина,MONTH(ЮнНед1+30)=6),ЮнНед1+30,\"\"),IF(AND(YEAR(ЮнНед1+37)=КалендарнаГодина,MONTH(ЮнНед1+37)=6),ЮнНед1+37,\"\"))","v":""},{"$f":"IF(DAY(ЮнНед1)=1,IF(AND(YEAR(ЮнНед1+31)=КалендарнаГодина,MONTH(ЮнНед1+31)=6),ЮнНед1+31,\"\"),IF(AND(YEAR(ЮнНед1+38)=КалендарнаГодина,MONTH(ЮнНед1+38)=6),ЮнНед1+38,\"\"))","v":""},{"$f":"IF(DAY(ЮнНед1)=1,IF(AND(YEAR(ЮнНед1+32)=КалендарнаГодина,MONTH(ЮнНед1+32)=6),ЮнНед1+32,\"\"),IF(AND(YEAR(ЮнНед1+39)=КалендарнаГодина,MONTH(ЮнНед1+39)=6),ЮнНед1+39,\"\"))","v":""},{"$f":"IF(DAY(ЮнНед1)=1,IF(AND(YEAR(ЮнНед1+33)=КалендарнаГодина,MONTH(ЮнНед1+33)=6),ЮнНед1+33,\"\"),IF(AND(YEAR(ЮнНед1+40)=КалендарнаГодина,MONTH(ЮнНед1+40)=6),ЮнНед1+40,\"\"))","v":""},{"$f":"IF(DAY(ЮнНед1)=1,IF(AND(YEAR(ЮнНед1+34)=КалендарнаГодина,MONTH(ЮнНед1+34)=6),ЮнНед1+34,\"\"),IF(AND(YEAR(ЮнНед1+41)=КалендарнаГодина,MONTH(ЮнНед1+41)=6),ЮнНед1+41,\"\"))","v":""},{"$f":"IF(DAY(ЮнНед1)=1,IF(AND(YEAR(ЮнНед1+35)=КалендарнаГодина,MONTH(ЮнНед1+35)=6),ЮнНед1+35,\"\"),IF(AND(YEAR(ЮнНед1+42)=КалендарнаГодина,MONTH(ЮнНед1+42)=6),ЮнНед1+42,\"\"))","v":""}]
[]
["Етикетът за юли е в клетка C30, а за август е в клетка K30",null,"ЮЛИ",{"$nulls":7},"АВГУСТ"]
["Таблицата на календара за юли се намират в клетките от C31 до I37, а таблицата на календара за август е в клетки от K31 до Q37. Следващата инструкция е в клетка A39",null,"ПОН","ВТО","СРЯ","ЧЕТ","ПЕТ","СЪБ","НЕД",null,"ПОН","ВТО","СРЯ","ЧЕТ","ПЕТ","СЪБ","НЕД"]
[null,null,{"$f":"IF(DAY(ЮлНед1)=1,\"\",IF(AND(YEAR(ЮлНед1+1)=КалендарнаГодина,MONTH(ЮлНед1+1)=7),ЮлНед1+1,\"\"))","v":""},{"$f":"IF(DAY(ЮлНед1)=1,\"\",IF(AND(YEAR(ЮлНед1+2)=КалендарнаГодина,MONTH(ЮлНед1+2)=7),ЮлНед1+2,\"\"))","v":""},{"$f":"IF(DAY(ЮлНед1)=1,\"\",IF(AND(YEAR(ЮлНед1+3)=КалендарнаГодина,MONTH(ЮлНед1+3)=7),ЮлНед1+3,\"\"))","v":""},{"$f":"IF(DAY(ЮлНед1)=1,\"\",IF(AND(YEAR(ЮлНед1+4)=КалендарнаГодина,MONTH(ЮлНед1+4)=7),ЮлНед1+4,\"\"))","v":""},{"$f":"IF(DAY(ЮлНед1)=1,\"\",IF(AND(YEAR(ЮлНед1+5)=КалендарнаГодина,MONTH(ЮлНед1+5)=7),ЮлНед1+5,\"\"))","v":"2022-07-01"},{"$f":"IF(DAY(ЮлНед1)=1,\"\",IF(AND(YEAR(ЮлНед1+6)=КалендарнаГодина,MONTH(ЮлНед1+6)=7),ЮлНед1+6,\"\"))","v":"2022-07-02"},{"$f":"IF(DAY(ЮлНед1)=1,IF(AND(YEAR(ЮлНед1)=КалендарнаГодина,MONTH(ЮлНед1)=7),ЮлНед1,\"\"),IF(AND(YEAR(ЮлНед1+7)=КалендарнаГодина,MONTH(ЮлНед1+7)=7),ЮлНед1+7,\"\"))","v":"2022-07-03"},null,{"$f":"IF(DAY(АвгНед1)=1,\"\",IF(AND(YEAR(АвгНед1+1)=КалендарнаГодина,MONTH(АвгНед1+1)=8),АвгНед1+1,\"\"))","v":"2022-08-01"},{"$f":"IF(DAY(АвгНед1)=1,\"\",IF(AND(YEAR(АвгНед1+2)=КалендарнаГодина,MONTH(АвгНед1+2)=8),АвгНед1+2,\"\"))","v":"2022-08-02"},{"$f":"IF(DAY(АвгНед1)=1,\"\",IF(AND(YEAR(АвгНед1+3)=КалендарнаГодина,MONTH(АвгНед1+3)=8),АвгНед1+3,\"\"))","v":"2022-08-03"},{"$f":"IF(DAY(АвгНед1)=1,\"\",IF(AND(YEAR(АвгНед1+4)=КалендарнаГодина,MONTH(АвгНед1+4)=8),АвгНед1+4,\"\"))","v":"2022-08-04"},{"$f":"IF(DAY(АвгНед1)=1,\"\",IF(AND(YEAR(АвгНед1+5)=КалендарнаГодина,MONTH(АвгНед1+5)=8),АвгНед1+5,\"\"))","v":"2022-08-05"},{"$f":"IF(DAY(АвгНед1)=1,\"\",IF(AND(YEAR(АвгНед1+6)=КалендарнаГодина,MONTH(АвгНед1+6)=8),АвгНед1+6,\"\"))","v":"2022-08-06"},{"$f":"IF(DAY(АвгНед1)=1,IF(AND(YEAR(АвгНед1)=КалендарнаГодина,MONTH(АвгНед1)=8),АвгНед1,\"\"),IF(AND(YEAR(АвгНед1+7)=КалендарнаГодина,MONTH(АвгНед1+7)=8),АвгНед1+7,\"\"))","v":"2022-08-07"}]
[null,null,{"$f":"IF(DAY(ЮлНед1)=1,IF(AND(YEAR(ЮлНед1+1)=КалендарнаГодина,MONTH(ЮлНед1+1)=7),ЮлНед1+1,\"\"),IF(AND(YEAR(ЮлНед1+8)=КалендарнаГодина,MONTH(ЮлНед1+8)=7),ЮлНед1+8,\"\"))","v":"2022-07-04"},{"$f":"IF(DAY(ЮлНед1)=1,IF(AND(YEAR(ЮлНед1+2)=КалендарнаГодина,MONTH(ЮлНед1+2)=7),ЮлНед1+2,\"\"),IF(AND(YEAR(ЮлНед1+9)=КалендарнаГодина,MONTH(ЮлНед1+9)=7),ЮлНед1+9,\"\"))","v":"2022-07-05"},{"$f":"IF(DAY(ЮлНед1)=1,IF(AND(YEAR(ЮлНед1+3)=КалендарнаГодина,MONTH(ЮлНед1+3)=7),ЮлНед1+3,\"\"),IF(AND(YEAR(ЮлНед1+10)=КалендарнаГодина,MONTH(ЮлНед1+10)=7),ЮлНед1+10,\"\"))","v":"2022-07-06"},{"$f":"IF(DAY(ЮлНед1)=1,IF(AND(YEAR(ЮлНед1+4)=КалендарнаГодина,MONTH(ЮлНед1+4)=7),ЮлНед1+4,\"\"),IF(AND(YEAR(ЮлНед1+11)=КалендарнаГодина,MONTH(ЮлНед1+11)=7),ЮлНед1+11,\"\"))","v":"2022-07-07"},{"$f":"IF(DAY(ЮлНед1)=1,IF(AND(YEAR(ЮлНед1+5)=КалендарнаГодина,MONTH(ЮлНед1+5)=7),ЮлНед1+5,\"\"),IF(AND(YEAR(ЮлНед1+12)=КалендарнаГодина,MONTH(ЮлНед1+12)=7),ЮлНед1+12,\"\"))","v":"2022-07-08"},{"$f":"IF(DAY(ЮлНед1)=1,IF(AND(YEAR(ЮлНед1+6)=КалендарнаГодина,MONTH(ЮлНед1+6)=7),ЮлНед1+6,\"\"),IF(AND(YEAR(ЮлНед1+13)=КалендарнаГодина,MONTH(ЮлНед1+13)=7),ЮлНед1+13,\"\"))","v":"2022-07-09"},{"$f":"IF(DAY(ЮлНед1)=1,IF(AND(YEAR(ЮлНед1+7)=КалендарнаГодина,MONTH(ЮлНед1+7)=7),ЮлНед1+7,\"\"),IF(AND(YEAR(ЮлНед1+14)=КалендарнаГодина,MONTH(ЮлНед1+14)=7),ЮлНед1+14,\"\"))","v":"2022-07-10"},null,{"$f":"IF(DAY(АвгНед1)=1,IF(AND(YEAR(АвгНед1+1)=КалендарнаГодина,MONTH(АвгНед1+1)=8),АвгНед1+1,\"\"),IF(AND(YEAR(АвгНед1+8)=КалендарнаГодина,MONTH(АвгНед1+8)=8),АвгНед1+8,\"\"))","v":"2022-08-08"},{"$f":"IF(DAY(АвгНед1)=1,IF(AND(YEAR(АвгНед1+2)=КалендарнаГодина,MONTH(АвгНед1+2)=8),АвгНед1+2,\"\"),IF(AND(YEAR(АвгНед1+9)=КалендарнаГодина,MONTH(АвгНед1+9)=8),АвгНед1+9,\"\"))","v":"2022-08-09"},{"$f":"IF(DAY(АвгНед1)=1,IF(AND(YEAR(АвгНед1+3)=КалендарнаГодина,MONTH(АвгНед1+3)=8),АвгНед1+3,\"\"),IF(AND(YEAR(АвгНед1+10)=КалендарнаГодина,MONTH(АвгНед1+10)=8),АвгНед1+10,\"\"))","v":"2022-08-10"},{"$f":"IF(DAY(АвгНед1)=1,IF(AND(YEAR(АвгНед1+4)=КалендарнаГодина,MONTH(АвгНед1+4)=8),АвгНед1+4,\"\"),IF(AND(YEAR(АвгНед1+11)=КалендарнаГодина,MONTH(АвгНед1+11)=8),АвгНед1+11,\"\"))","v":"2022-08-11"},{"$f":"IF(DAY(АвгНед1)=1,IF(AND(YEAR(АвгНед1+5)=КалендарнаГодина,MONTH(АвгНед1+5)=8),АвгНед1+5,\"\"),IF(AND(YEAR(АвгНед1+12)=КалендарнаГодина,MONTH(АвгНед1+12)=8),АвгНед1+12,\"\"))","v":"2022-08-12"},{"$f":"IF(DAY(АвгНед1)=1,IF(AND(YEAR(АвгНед1+6)=КалендарнаГодина,MONTH(АвгНед1+6)=8),АвгНед1+6,\"\"),IF(AND(YEAR(АвгНед1+13)=КалендарнаГодина,MONTH(АвгНед1+13)=8),АвгНед1+13,\"\"))","v":"2022-08-13"},{"$f":"IF(DAY(АвгНед1)=1,IF(AND(YEAR(АвгНед1+7)=КалендарнаГодина,MONTH(АвгНед1+7)=8),АвгНед1+7,\"\"),IF(AND(YEAR(АвгНед1+14)=КалендарнаГодина,MONTH(АвгНед1+14)=8),АвгНед1+14,\"\"))","v":"2022-08-14"}]
[null,null,{"$f":"IF(DAY(ЮлНед1)=1,IF(AND(YEAR(ЮлНед1+8)=КалендарнаГодина,MONTH(ЮлНед1+8)=7),ЮлНед1+8,\"\"),IF(AND(YEAR(ЮлНед1+15)=КалендарнаГодина,MONTH(ЮлНед1+15)=7),ЮлНед1+15,\"\"))","v":"2022-07-11"},{"$f":"IF(DAY(ЮлНед1)=1,IF(AND(YEAR(ЮлНед1+9)=КалендарнаГодина,MONTH(ЮлНед1+9)=7),ЮлНед1+9,\"\"),IF(AND(YEAR(ЮлНед1+16)=КалендарнаГодина,MONTH(ЮлНед1+16)=7),ЮлНед1+16,\"\"))","v":"2022-07-12"},{"$f":"IF(DAY(ЮлНед1)=1,IF(AND(YEAR(ЮлНед1+10)=КалендарнаГодина,MONTH(ЮлНед1+10)=7),ЮлНед1+10,\"\"),IF(AND(YEAR(ЮлНед1+17)=КалендарнаГодина,MONTH(ЮлНед1+17)=7),ЮлНед1+17,\"\"))","v":"2022-07-13"},{"$f":"IF(DAY(ЮлНед1)=1,IF(AND(YEAR(ЮлНед1+11)=КалендарнаГодина,MONTH(ЮлНед1+11)=7),ЮлНед1+11,\"\"),IF(AND(YEAR(ЮлНед1+18)=КалендарнаГодина,MONTH(ЮлНед1+18)=7),ЮлНед1+18,\"\"))","v":"2022-07-14"},{"$f":"IF(DAY(ЮлНед1)=1,IF(AND(YEAR(ЮлНед1+12)=КалендарнаГодина,MONTH(ЮлНед1+12)=7),ЮлНед1+12,\"\"),IF(AND(YEAR(ЮлНед1+19)=КалендарнаГодина,MONTH(ЮлНед1+19)=7),ЮлНед1+19,\"\"))","v":"2022-07-15"},{"$f":"IF(DAY(ЮлНед1)=1,IF(AND(YEAR(ЮлНед1+13)=КалендарнаГодина,MONTH(ЮлНед1+13)=7),ЮлНед1+13,\"\"),IF(AND(YEAR(ЮлНед1+20)=КалендарнаГодина,MONTH(ЮлНед1+20)=7),ЮлНед1+20,\"\"))","v":"2022-07-16"},{"$f":"IF(DAY(ЮлНед1)=1,IF(AND(YEAR(ЮлНед1+14)=КалендарнаГодина,MONTH(ЮлНед1+14)=7),ЮлНед1+14,\"\"),IF(AND(YEAR(ЮлНед1+21)=КалендарнаГодина,MONTH(ЮлНед1+21)=7),ЮлНед1+21,\"\"))","v":"2022-07-17"},null,{"$f":"IF(DAY(АвгНед1)=1,IF(AND(YEAR(АвгНед1+8)=КалендарнаГодина,MONTH(АвгНед1+8)=8),АвгНед1+8,\"\"),IF(AND(YEAR(АвгНед1+15)=КалендарнаГодина,MONTH(АвгНед1+15)=8),АвгНед1+15,\"\"))","v":"2022-08-15"},{"$f":"IF(DAY(АвгНед1)=1,IF(AND(YEAR(АвгНед1+9)=КалендарнаГодина,MONTH(АвгНед1+9)=8),АвгНед1+9,\"\"),IF(AND(YEAR(АвгНед1+16)=КалендарнаГодина,MONTH(АвгНед1+16)=8),АвгНед1+16,\"\"))","v":"2022-08-16"},{"$f":"IF(DAY(АвгНед1)=1,IF(AND(YEAR(АвгНед1+10)=КалендарнаГодина,MONTH(АвгНед1+10)=8),АвгНед1+10,\"\"),IF(AND(YEAR(АвгНед1+17)=КалендарнаГодина,MONTH(АвгНед1+17)=8),АвгНед1+17,\"\"))","v":"2022-08-17"},{"$f":"IF(DAY(АвгНед1)=1,IF(AND(YEAR(АвгНед1+11)=КалендарнаГодина,MONTH(АвгНед1+11)=8),АвгНед1+11,\"\"),IF(AND(YEAR(АвгНед1+18)=КалендарнаГодина,MONTH(АвгНед1+18)=8),АвгНед1+18,\"\"))","v":"2022-08-18"},{"$f":"IF(DAY(АвгНед1)=1,IF(AND(YEAR(АвгНед1+12)=КалендарнаГодина,MONTH(АвгНед1+12)=8),АвгНед1+12,\"\"),IF(AND(YEAR(АвгНед1+19)=КалендарнаГодина,MONTH(АвгНед1+19)=8),АвгНед1+19,\"\"))","v":"2022-08-19"},{"$f":"IF(DAY(АвгНед1)=1,IF(AND(YEAR(АвгНед1+13)=КалендарнаГодина,MONTH(АвгНед1+13)=8),АвгНед1+13,\"\"),IF(AND(YEAR(АвгНед1+20)=КалендарнаГодина,MONTH(АвгНед1+20)=8),АвгНед1+20,\"\"))","v":"2022-08-20"},{"$f":"IF(DAY(АвгНед1)=1,IF(AND(YEAR(АвгНед1+14)=КалендарнаГодина,MONTH(АвгНед1+14)=8),АвгНед1+14,\"\"),IF(AND(YEAR(АвгНед1+21)=КалендарнаГодина,MONTH(АвгНед1+21)=8),АвгНед1+21,\"\"))","v":"2022-08-21"}]
[null,null,{"$f":"IF(DAY(ЮлНед1)=1,IF(AND(YEAR(ЮлНед1+15)=КалендарнаГодина,MONTH(ЮлНед1+15)=7),ЮлНед1+15,\"\"),IF(AND(YEAR(ЮлНед1+22)=КалендарнаГодина,MONTH(ЮлНед1+22)=7),ЮлНед1+22,\"\"))","v":"2022-07-18"},{"$f":"IF(DAY(ЮлНед1)=1,IF(AND(YEAR(ЮлНед1+16)=КалендарнаГодина,MONTH(ЮлНед1+16)=7),ЮлНед1+16,\"\"),IF(AND(YEAR(ЮлНед1+23)=КалендарнаГодина,MONTH(ЮлНед1+23)=7),ЮлНед1+23,\"\"))","v":"2022-07-19"},{"$f":"IF(DAY(ЮлНед1)=1,IF(AND(YEAR(ЮлНед1+17)=КалендарнаГодина,MONTH(ЮлНед1+17)=7),ЮлНед1+17,\"\"),IF(AND(YEAR(ЮлНед1+24)=КалендарнаГодина,MONTH(ЮлНед1+24)=7),ЮлНед1+24,\"\"))","v":"2022-07-20"},{"$f":"IF(DAY(ЮлНед1)=1,IF(AND(YEAR(ЮлНед1+18)=КалендарнаГодина,MONTH(ЮлНед1+18)=7),ЮлНед1+18,\"\"),IF(AND(YEAR(ЮлНед1+25)=КалендарнаГодина,MONTH(ЮлНед1+25)=7),ЮлНед1+25,\"\"))","v":"2022-07-21"},{"$f":"IF(DAY(ЮлНед1)=1,IF(AND(YEAR(ЮлНед1+19)=КалендарнаГодина,MONTH(ЮлНед1+19)=7),ЮлНед1+19,\"\"),IF(AND(YEAR(ЮлНед1+26)=КалендарнаГодина,MONTH(ЮлНед1+26)=7),ЮлНед1+26,\"\"))","v":"2022-07-22"},{"$f":"IF(DAY(ЮлНед1)=1,IF(AND(YEAR(ЮлНед1+20)=КалендарнаГодина,MONTH(ЮлНед1+20)=7),ЮлНед1+20,\"\"),IF(AND(YEAR(ЮлНед1+27)=КалендарнаГодина,MONTH(ЮлНед1+27)=7),ЮлНед1+27,\"\"))","v":"2022-07-23"},{"$f":"IF(DAY(ЮлНед1)=1,IF(AND(YEAR(ЮлНед1+21)=КалендарнаГодина,MONTH(ЮлНед1+21)=7),ЮлНед1+21,\"\"),IF(AND(YEAR(ЮлНед1+28)=КалендарнаГодина,MONTH(ЮлНед1+28)=7),ЮлНед1+28,\"\"))","v":"2022-07-24"},null,{"$f":"IF(DAY(АвгНед1)=1,IF(AND(YEAR(АвгНед1+15)=КалендарнаГодина,MONTH(АвгНед1+15)=8),АвгНед1+15,\"\"),IF(AND(YEAR(АвгНед1+22)=КалендарнаГодина,MONTH(АвгНед1+22)=8),АвгНед1+22,\"\"))","v":"2022-08-22"},{"$f":"IF(DAY(АвгНед1)=1,IF(AND(YEAR(АвгНед1+16)=КалендарнаГодина,MONTH(АвгНед1+16)=8),АвгНед1+16,\"\"),IF(AND(YEAR(АвгНед1+23)=КалендарнаГодина,MONTH(АвгНед1+23)=8),АвгНед1+23,\"\"))","v":"2022-08-23"},{"$f":"IF(DAY(АвгНед1)=1,IF(AND(YEAR(АвгНед1+17)=КалендарнаГодина,MONTH(АвгНед1+17)=8),АвгНед1+17,\"\"),IF(AND(YEAR(АвгНед1+24)=КалендарнаГодина,MONTH(АвгНед1+24)=8),АвгНед1+24,\"\"))","v":"2022-08-24"},{"$f":"IF(DAY(АвгНед1)=1,IF(AND(YEAR(АвгНед1+18)=КалендарнаГодина,MONTH(АвгНед1+18)=8),АвгНед1+18,\"\"),IF(AND(YEAR(АвгНед1+25)=КалендарнаГодина,MONTH(АвгНед1+25)=8),АвгНед1+25,\"\"))","v":"2022-08-25"},{"$f":"IF(DAY(АвгНед1)=1,IF(AND(YEAR(АвгНед1+19)=КалендарнаГодина,MONTH(АвгНед1+19)=8),АвгНед1+19,\"\"),IF(AND(YEAR(АвгНед1+26)=КалендарнаГодина,MONTH(АвгНед1+26)=8),АвгНед1+26,\"\"))","v":"2022-08-26"},{"$f":"IF(DAY(АвгНед1)=1,IF(AND(YEAR(АвгНед1+20)=КалендарнаГодина,MONTH(АвгНед1+20)=8),АвгНед1+20,\"\"),IF(AND(YEAR(АвгНед1+27)=КалендарнаГодина,MONTH(АвгНед1+27)=8),АвгНед1+27,\"\"))","v":"2022-08-27"},{"$f":"IF(DAY(АвгНед1)=1,IF(AND(YEAR(АвгНед1+21)=КалендарнаГодина,MONTH(АвгНед1+21)=8),АвгНед1+21,\"\"),IF(AND(YEAR(АвгНед1+28)=КалендарнаГодина,MONTH(АвгНед1+28)=8),АвгНед1+28,\"\"))","v":"2022-08-28"}]
[null,null,{"$f":"IF(DAY(ЮлНед1)=1,IF(AND(YEAR(ЮлНед1+22)=КалендарнаГодина,MONTH(ЮлНед1+22)=7),ЮлНед1+22,\"\"),IF(AND(YEAR(ЮлНед1+29)=КалендарнаГодина,MONTH(ЮлНед1+29)=7),ЮлНед1+29,\"\"))","v":"2022-07-25"},{"$f":"IF(DAY(ЮлНед1)=1,IF(AND(YEAR(ЮлНед1+23)=КалендарнаГодина,MONTH(ЮлНед1+23)=7),ЮлНед1+23,\"\"),IF(AND(YEAR(ЮлНед1+30)=КалендарнаГодина,MONTH(ЮлНед1+30)=7),ЮлНед1+30,\"\"))","v":"2022-07-26"},{"$f":"IF(DAY(ЮлНед1)=1,IF(AND(YEAR(ЮлНед1+24)=КалендарнаГодина,MONTH(ЮлНед1+24)=7),ЮлНед1+24,\"\"),IF(AND(YEAR(ЮлНед1+31)=КалендарнаГодина,MONTH(ЮлНед1+31)=7),ЮлНед1+31,\"\"))","v":"2022-07-27"},{"$f":"IF(DAY(ЮлНед1)=1,IF(AND(YEAR(ЮлНед1+25)=КалендарнаГодина,MONTH(ЮлНед1+25)=7),ЮлНед1+25,\"\"),IF(AND(YEAR(ЮлНед1+32)=КалендарнаГодина,MONTH(ЮлНед1+32)=7),ЮлНед1+32,\"\"))","v":"2022-07-28"},{"$f":"IF(DAY(ЮлНед1)=1,IF(AND(YEAR(ЮлНед1+26)=КалендарнаГодина,MONTH(ЮлНед1+26)=7),ЮлНед1+26,\"\"),IF(AND(YEAR(ЮлНед1+33)=КалендарнаГодина,MONTH(ЮлНед1+33)=7),ЮлНед1+33,\"\"))","v":"2022-07-29"},{"$f":"IF(DAY(ЮлНед1)=1,IF(AND(YEAR(ЮлНед1+27)=КалендарнаГодина,MONTH(ЮлНед1+27)=7),ЮлНед1+27,\"\"),IF(AND(YEAR(ЮлНед1+34)=КалендарнаГодина,MONTH(ЮлНед1+34)=7),ЮлНед1+34,\"\"))","v":"2022-07-30"},{"$f":"IF(DAY(ЮлНед1)=1,IF(AND(YEAR(ЮлНед1+28)=КалендарнаГодина,MONTH(ЮлНед1+28)=7),ЮлНед1+28,\"\"),IF(AND(YEAR(ЮлНед1+35)=КалендарнаГодина,MONTH(ЮлНед1+35)=7),ЮлНед1+35,\"\"))","v":"2022-07-31"},null,{"$f":"IF(DAY(АвгНед1)=1,IF(AND(YEAR(АвгНед1+22)=КалендарнаГодина,MONTH(АвгНед1+22)=8),АвгНед1+22,\"\"),IF(AND(YEAR(АвгНед1+29)=КалендарнаГодина,MONTH(АвгНед1+29)=8),АвгНед1+29,\"\"))","v":"2022-08-29"},{"$f":"IF(DAY(АвгНед1)=1,IF(AND(YEAR(АвгНед1+23)=КалендарнаГодина,MONTH(АвгНед1+23)=8),АвгНед1+23,\"\"),IF(AND(YEAR(АвгНед1+30)=КалендарнаГодина,MONTH(АвгНед1+30)=8),АвгНед1+30,\"\"))","v":"2022-08-30"},{"$f":"IF(DAY(АвгНед1)=1,IF(AND(YEAR(АвгНед1+24)=КалендарнаГодина,MONTH(АвгНед1+24)=8),АвгНед1+24,\"\"),IF(AND(YEAR(АвгНед1+31)=КалендарнаГодина,MONTH(АвгНед1+31)=8),АвгНед1+31,\"\"))","v":"2022-08-31"},{"$f":"IF(DAY(АвгНед1)=1,IF(AND(YEAR(АвгНед1+25)=КалендарнаГодина,MONTH(АвгНед1+25)=8),АвгНед1+25,\"\"),IF(AND(YEAR(АвгНед1+32)=КалендарнаГодина,MONTH(АвгНед1+32)=8),АвгНед1+32,\"\"))","v":""},{"$f":"IF(DAY(АвгНед1)=1,IF(AND(YEAR(АвгНед1+26)=КалендарнаГодина,MONTH(АвгНед1+26)=8),АвгНед1+26,\"\"),IF(AND(YEAR(АвгНед1+33)=КалендарнаГодина,MONTH(АвгНед1+33)=8),АвгНед1+33,\"\"))","v":""},{"$f":"IF(DAY(АвгНед1)=1,IF(AND(YEAR(АвгНед1+27)=КалендарнаГодина,MONTH(АвгНед1+27)=8),АвгНед1+27,\"\"),IF(AND(YEAR(АвгНед1+34)=КалендарнаГодина,MONTH(АвгНед1+34)=8),АвгНед1+34,\"\"))","v":""},{"$f":"IF(DAY(АвгНед1)=1,IF(AND(YEAR(АвгНед1+28)=КалендарнаГодина,MONTH(АвгНед1+28)=8),АвгНед1+28,\"\"),IF(AND(YEAR(АвгНед1+35)=КалендарнаГодина,MONTH(АвгНед1+35)=8),АвгНед1+35,\"\"))","v":""}]
[null,null,{"$f":"IF(DAY(ЮлНед1)=1,IF(AND(YEAR(ЮлНед1+29)=КалендарнаГодина,MONTH(ЮлНед1+29)=7),ЮлНед1+29,\"\"),IF(AND(YEAR(ЮлНед1+36)=КалендарнаГодина,MONTH(ЮлНед1+36)=7),ЮлНед1+36,\"\"))","v":""},{"$f":"IF(DAY(ЮлНед1)=1,IF(AND(YEAR(ЮлНед1+30)=КалендарнаГодина,MONTH(ЮлНед1+30)=7),ЮлНед1+30,\"\"),IF(AND(YEAR(ЮлНед1+37)=КалендарнаГодина,MONTH(ЮлНед1+37)=7),ЮлНед1+37,\"\"))","v":""},{"$f":"IF(DAY(ЮлНед1)=1,IF(AND(YEAR(ЮлНед1+31)=КалендарнаГодина,MONTH(ЮлНед1+31)=7),ЮлНед1+31,\"\"),IF(AND(YEAR(ЮлНед1+38)=КалендарнаГодина,MONTH(ЮлНед1+38)=7),ЮлНед1+38,\"\"))","v":""},{"$f":"IF(DAY(ЮлНед1)=1,IF(AND(YEAR(ЮлНед1+32)=КалендарнаГодина,MONTH(ЮлНед1+32)=7),ЮлНед1+32,\"\"),IF(AND(YEAR(ЮлНед1+39)=КалендарнаГодина,MONTH(ЮлНед1+39)=7),ЮлНед1+39,\"\"))","v":""},{"$f":"IF(DAY(ЮлНед1)=1,IF(AND(YEAR(ЮлНед1+33)=КалендарнаГодина,MONTH(ЮлНед1+33)=7),ЮлНед1+33,\"\"),IF(AND(YEAR(ЮлНед1+40)=КалендарнаГодина,MONTH(ЮлНед1+40)=7),ЮлНед1+40,\"\"))","v":""},{"$f":"IF(DAY(ЮлНед1)=1,IF(AND(YEAR(ЮлНед1+34)=КалендарнаГодина,MONTH(ЮлНед1+34)=7),ЮлНед1+34,\"\"),IF(AND(YEAR(ЮлНед1+41)=КалендарнаГодина,MONTH(ЮлНед1+41)=7),ЮлНед1+41,\"\"))","v":""},{"$f":"IF(DAY(ЮлНед1)=1,IF(AND(YEAR(ЮлНед1+35)=КалендарнаГодина,MONTH(ЮлНед1+35)=7),ЮлНед1+35,\"\"),IF(AND(YEAR(ЮлНед1+42)=КалендарнаГодина,MONTH(ЮлНед1+42)=7),ЮлНед1+42,\"\"))","v":""},null,{"$f":"IF(DAY(АвгНед1)=1,IF(AND(YEAR(АвгНед1+29)=КалендарнаГодина,MONTH(АвгНед1+29)=8),АвгНед1+29,\"\"),IF(AND(YEAR(АвгНед1+36)=КалендарнаГодина,MONTH(АвгНед1+36)=8),АвгНед1+36,\"\"))","v":""},{"$f":"IF(DAY(АвгНед1)=1,IF(AND(YEAR(АвгНед1+30)=КалендарнаГодина,MONTH(АвгНед1+30)=8),АвгНед1+30,\"\"),IF(AND(YEAR(АвгНед1+37)=КалендарнаГодина,MONTH(АвгНед1+37)=8),АвгНед1+37,\"\"))","v":""},{"$f":"IF(DAY(АвгНед1)=1,IF(AND(YEAR(АвгНед1+31)=КалендарнаГодина,MONTH(АвгНед1+31)=8),АвгНед1+31,\"\"),IF(AND(YEAR(АвгНед1+38)=КалендарнаГодина,MONTH(АвгНед1+38)=8),АвгНед1+38,\"\"))","v":""},{"$f":"IF(DAY(АвгНед1)=1,IF(AND(YEAR(АвгНед1+32)=КалендарнаГодина,MONTH(АвгНед1+32)=8),АвгНед1+32,\"\"),IF(AND(YEAR(АвгНед1+39)=КалендарнаГодина,MONTH(АвгНед1+39)=8),АвгНед1+39,\"\"))","v":""},{"$f":"IF(DAY(АвгНед1)=1,IF(AND(YEAR(АвгНед1+33)=КалендарнаГодина,MONTH(АвгНед1+33)=8),АвгНед1+33,\"\"),IF(AND(YEAR(АвгНед1+40)=КалендарнаГодина,MONTH(АвгНед1+40)=8),АвгНед1+40,\"\"))","v":""},{"$f":"IF(DAY(АвгНед1)=1,IF(AND(YEAR(АвгНед1+34)=КалендарнаГодина,MONTH(АвгНед1+34)=8),АвгНед1+34,\"\"),IF(AND(YEAR(АвгНед1+41)=КалендарнаГодина,MONTH(АвгНед1+41)=8),АвгНед1+41,\"\"))","v":""},{"$f":"IF(DAY(АвгНед1)=1,IF(AND(YEAR(АвгНед1+35)=КалендарнаГодина,MONTH(АвгНед1+35)=8),АвгНед1+35,\"\"),IF(AND(YEAR(АвгНед1+42)=КалендарнаГодина,MONTH(АвгНед1+42)=8),АвгНед1+42,\"\"))","v":""}]
[]
["Етикетът за септември е в клетка C39, а за октомври в клетка K39",null,"СЕПТЕМВРИ",{"$nulls":7},"ОКТОМВРИ"]
["Таблицата на календара за септември се намират в клетките от C40 до I46, а таблицата на календара за октомври е в клетки от K40 до Q46. Следващата инструкция е в клетка A44",null,"ПОН","ВТО","СРЯ","ЧЕТ","ПЕТ","СЪБ","НЕД",null,"ПОН","ВТО","СРЯ","ЧЕТ","ПЕТ","СЪБ","НЕД"]
[null,null,{"$f":"IF(DAY(SepSun1)=1,\"\",IF(AND(YEAR(SepSun1+1)=КалендарнаГодина,MONTH(SepSun1+1)=9),SepSun1+1,\"\"))","v":""},{"$f":"IF(DAY(SepSun1)=1,\"\",IF(AND(YEAR(SepSun1+2)=КалендарнаГодина,MONTH(SepSun1+2)=9),SepSun1+2,\"\"))","v":""},{"$f":"IF(DAY(SepSun1)=1,\"\",IF(AND(YEAR(SepSun1+3)=КалендарнаГодина,MONTH(SepSun1+3)=9),SepSun1+3,\"\"))","v":""},{"$f":"IF(DAY(SepSun1)=1,\"\",IF(AND(YEAR(SepSun1+4)=КалендарнаГодина,MONTH(SepSun1+4)=9),SepSun1+4,\"\"))","v":"2022-09-01"},{"$f":"IF(DAY(SepSun1)=1,\"\",IF(AND(YEAR(SepSun1+5)=КалендарнаГодина,MONTH(SepSun1+5)=9),SepSun1+5,\"\"))","v":"2022-09-02"},{"$f":"IF(DAY(SepSun1)=1,\"\",IF(AND(YEAR(SepSun1+6)=КалендарнаГодина,MONTH(SepSun1+6)=9),SepSun1+6,\"\"))","v":"2022-09-03"},{"$f":"IF(DAY(SepSun1)=1,IF(AND(YEAR(SepSun1)=КалендарнаГодина,MONTH(SepSun1)=9),SepSun1,\"\"),IF(AND(YEAR(SepSun1+7)=КалендарнаГодина,MONTH(SepSun1+7)=9),SepSun1+7,\"\"))","v":"2022-09-04"},null,{"$f":"IF(DAY(ОктНед1)=1,\"\",IF(AND(YEAR(ОктНед1+1)=КалендарнаГодина,MONTH(ОктНед1+1)=10),ОктНед1+1,\"\"))","v":""},{"$f":"IF(DAY(ОктНед1)=1,\"\",IF(AND(YEAR(ОктНед1+2)=КалендарнаГодина,MONTH(ОктНед1+2)=10),ОктНед1+2,\"\"))","v":""},{"$f":"IF(DAY(ОктНед1)=1,\"\",IF(AND(YEAR(ОктНед1+3)=КалендарнаГодина,MONTH(ОктНед1+3)=10),ОктНед1+3,\"\"))","v":""},{"$f":"IF(DAY(ОктНед1)=1,\"\",IF(AND(YEAR(ОктНед1+4)=КалендарнаГодина,MONTH(ОктНед1+4)=10),ОктНед1+4,\"\"))","v":""},{"$f":"IF(DAY(ОктНед1)=1,\"\",IF(AND(YEAR(ОктНед1+5)=КалендарнаГодина,MONTH(ОктНед1+5)=10),ОктНед1+5,\"\"))","v":""},{"$f":"IF(DAY(ОктНед1)=1,\"\",IF(AND(YEAR(ОктНед1+6)=КалендарнаГодина,MONTH(ОктНед1+6)=10),ОктНед1+6,\"\"))","v":"2022-10-01"},{"$f":"IF(DAY(ОктНед1)=1,IF(AND(YEAR(ОктНед1)=КалендарнаГодина,MONTH(ОктНед1)=10),ОктНед1,\"\"),IF(AND(YEAR(ОктНед1+7)=КалендарнаГодина,MONTH(ОктНед1+7)=10),ОктНед1+7,\"\"))","v":"2022-10-02"}]
[null,null,{"$f":"IF(DAY(SepSun1)=1,IF(AND(YEAR(SepSun1+1)=КалендарнаГодина,MONTH(SepSun1+1)=9),SepSun1+1,\"\"),IF(AND(YEAR(SepSun1+8)=КалендарнаГодина,MONTH(SepSun1+8)=9),SepSun1+8,\"\"))","v":"2022-09-05"},{"$f":"IF(DAY(SepSun1)=1,IF(AND(YEAR(SepSun1+2)=КалендарнаГодина,MONTH(SepSun1+2)=9),SepSun1+2,\"\"),IF(AND(YEAR(SepSun1+9)=КалендарнаГодина,MONTH(SepSun1+9)=9),SepSun1+9,\"\"))","v":"2022-09-06"},{"$f":"IF(DAY(SepSun1)=1,IF(AND(YEAR(SepSun1+3)=КалендарнаГодина,MONTH(SepSun1+3)=9),SepSun1+3,\"\"),IF(AND(YEAR(SepSun1+10)=КалендарнаГодина,MONTH(SepSun1+10)=9),SepSun1+10,\"\"))","v":"2022-09-07"},{"$f":"IF(DAY(SepSun1)=1,IF(AND(YEAR(SepSun1+4)=КалендарнаГодина,MONTH(SepSun1+4)=9),SepSun1+4,\"\"),IF(AND(YEAR(SepSun1+11)=КалендарнаГодина,MONTH(SepSun1+11)=9),SepSun1+11,\"\"))","v":"2022-09-08"},{"$f":"IF(DAY(SepSun1)=1,IF(AND(YEAR(SepSun1+5)=КалендарнаГодина,MONTH(SepSun1+5)=9),SepSun1+5,\"\"),IF(AND(YEAR(SepSun1+12)=КалендарнаГодина,MONTH(SepSun1+12)=9),SepSun1+12,\"\"))","v":"2022-09-09"},{"$f":"IF(DAY(SepSun1)=1,IF(AND(YEAR(SepSun1+6)=КалендарнаГодина,MONTH(SepSun1+6)=9),SepSun1+6,\"\"),IF(AND(YEAR(SepSun1+13)=КалендарнаГодина,MONTH(SepSun1+13)=9),SepSun1+13,\"\"))","v":"2022-09-10"},{"$f":"IF(DAY(SepSun1)=1,IF(AND(YEAR(SepSun1+7)=КалендарнаГодина,MONTH(SepSun1+7)=9),SepSun1+7,\"\"),IF(AND(YEAR(SepSun1+14)=КалендарнаГодина,MONTH(SepSun1+14)=9),SepSun1+14,\"\"))","v":"2022-09-11"},null,{"$f":"IF(DAY(ОктНед1)=1,IF(AND(YEAR(ОктНед1+1)=КалендарнаГодина,MONTH(ОктНед1+1)=10),ОктНед1+1,\"\"),IF(AND(YEAR(ОктНед1+8)=КалендарнаГодина,MONTH(ОктНед1+8)=10),ОктНед1+8,\"\"))","v":"2022-10-03"},{"$f":"IF(DAY(ОктНед1)=1,IF(AND(YEAR(ОктНед1+2)=КалендарнаГодина,MONTH(ОктНед1+2)=10),ОктНед1+2,\"\"),IF(AND(YEAR(ОктНед1+9)=КалендарнаГодина,MONTH(ОктНед1+9)=10),ОктНед1+9,\"\"))","v":"2022-10-04"},{"$f":"IF(DAY(ОктНед1)=1,IF(AND(YEAR(ОктНед1+3)=КалендарнаГодина,MONTH(ОктНед1+3)=10),ОктНед1+3,\"\"),IF(AND(YEAR(ОктНед1+10)=КалендарнаГодина,MONTH(ОктНед1+10)=10),ОктНед1+10,\"\"))","v":"2022-10-05"},{"$f":"IF(DAY(ОктНед1)=1,IF(AND(YEAR(ОктНед1+4)=КалендарнаГодина,MONTH(ОктНед1+4)=10),ОктНед1+4,\"\"),IF(AND(YEAR(ОктНед1+11)=КалендарнаГодина,MONTH(ОктНед1+11)=10),ОктНед1+11,\"\"))","v":"2022-10-06"},{"$f":"IF(DAY(ОктНед1)=1,IF(AND(YEAR(ОктНед1+5)=КалендарнаГодина,MONTH(ОктНед1+5)=10),ОктНед1+5,\"\"),IF(AND(YEAR(ОктНед1+12)=КалендарнаГодина,MONTH(ОктНед1+12)=10),ОктНед1+12,\"\"))","v":"2022-10-07"},{"$f":"IF(DAY(ОктНед1)=1,IF(AND(YEAR(ОктНед1+6)=КалендарнаГодина,MONTH(ОктНед1+6)=10),ОктНед1+6,\"\"),IF(AND(YEAR(ОктНед1+13)=КалендарнаГодина,MONTH(ОктНед1+13)=10),ОктНед1+13,\"\"))","v":"2022-10-08"},{"$f":"IF(DAY(ОктНед1)=1,IF(AND(YEAR(ОктНед1+7)=КалендарнаГодина,MONTH(ОктНед1+7)=10),ОктНед1+7,\"\"),IF(AND(YEAR(ОктНед1+14)=КалендарнаГодина,MONTH(ОктНед1+14)=10),ОктНед1+14,\"\"))","v":"2022-10-09"}]
[null,null,{"$f":"IF(DAY(SepSun1)=1,IF(AND(YEAR(SepSun1+8)=КалендарнаГодина,MONTH(SepSun1+8)=9),SepSun1+8,\"\"),IF(AND(YEAR(SepSun1+15)=КалендарнаГодина,MONTH(SepSun1+15)=9),SepSun1+15,\"\"))","v":"2022-09-12"},{"$f":"IF(DAY(SepSun1)=1,IF(AND(YEAR(SepSun1+9)=КалендарнаГодина,MONTH(SepSun1+9)=9),SepSun1+9,\"\"),IF(AND(YEAR(SepSun1+16)=КалендарнаГодина,MONTH(SepSun1+16)=9),SepSun1+16,\"\"))","v":"2022-09-13"},{"$f":"IF(DAY(SepSun1)=1,IF(AND(YEAR(SepSun1+10)=КалендарнаГодина,MONTH(SepSun1+10)=9),SepSun1+10,\"\"),IF(AND(YEAR(SepSun1+17)=КалендарнаГодина,MONTH(SepSun1+17)=9),SepSun1+17,\"\"))","v":"2022-09-14"},{"$f":"IF(DAY(SepSun1)=1,IF(AND(YEAR(SepSun1+11)=КалендарнаГодина,MONTH(SepSun1+11)=9),SepSun1+11,\"\"),IF(AND(YEAR(SepSun1+18)=КалендарнаГодина,MONTH(SepSun1+18)=9),SepSun1+18,\"\"))","v":"2022-09-15"},{"$f":"IF(DAY(SepSun1)=1,IF(AND(YEAR(SepSun1+12)=КалендарнаГодина,MONTH(SepSun1+12)=9),SepSun1+12,\"\"),IF(AND(YEAR(SepSun1+19)=КалендарнаГодина,MONTH(SepSun1+19)=9),SepSun1+19,\"\"))","v":"2022-09-16"},{"$f":"IF(DAY(SepSun1)=1,IF(AND(YEAR(SepSun1+13)=КалендарнаГодина,MONTH(SepSun1+13)=9),SepSun1+13,\"\"),IF(AND(YEAR(SepSun1+20)=КалендарнаГодина,MONTH(SepSun1+20)=9),SepSun1+20,\"\"))","v":"2022-09-17"},{"$f":"IF(DAY(SepSun1)=1,IF(AND(YEAR(SepSun1+14)=КалендарнаГодина,MONTH(SepSun1+14)=9),SepSun1+14,\"\"),IF(AND(YEAR(SepSun1+21)=КалендарнаГодина,MONTH(SepSun1+21)=9),SepSun1+21,\"\"))","v":"2022-09-18"},null,{"$f":"IF(DAY(ОктНед1)=1,IF(AND(YEAR(ОктНед1+8)=КалендарнаГодина,MONTH(ОктНед1+8)=10),ОктНед1+8,\"\"),IF(AND(YEAR(ОктНед1+15)=КалендарнаГодина,MONTH(ОктНед1+15)=10),ОктНед1+15,\"\"))","v":"2022-10-10"},{"$f":"IF(DAY(ОктНед1)=1,IF(AND(YEAR(ОктНед1+9)=КалендарнаГодина,MONTH(ОктНед1+9)=10),ОктНед1+9,\"\"),IF(AND(YEAR(ОктНед1+16)=КалендарнаГодина,MONTH(ОктНед1+16)=10),ОктНед1+16,\"\"))","v":"2022-10-11"},{"$f":"IF(DAY(ОктНед1)=1,IF(AND(YEAR(ОктНед1+10)=КалендарнаГодина,MONTH(ОктНед1+10)=10),ОктНед1+10,\"\"),IF(AND(YEAR(ОктНед1+17)=КалендарнаГодина,MONTH(ОктНед1+17)=10),ОктНед1+17,\"\"))","v":"2022-10-12"},{"$f":"IF(DAY(ОктНед1)=1,IF(AND(YEAR(ОктНед1+11)=КалендарнаГодина,MONTH(ОктНед1+11)=10),ОктНед1+11,\"\"),IF(AND(YEAR(ОктНед1+18)=КалендарнаГодина,MONTH(ОктНед1+18)=10),ОктНед1+18,\"\"))","v":"2022-10-13"},{"$f":"IF(DAY(ОктНед1)=1,IF(AND(YEAR(ОктНед1+12)=КалендарнаГодина,MONTH(ОктНед1+12)=10),ОктНед1+12,\"\"),IF(AND(YEAR(ОктНед1+19)=КалендарнаГодина,MONTH(ОктНед1+19)=10),ОктНед1+19,\"\"))","v":"2022-10-14"},{"$f":"IF(DAY(ОктНед1)=1,IF(AND(YEAR(ОктНед1+13)=КалендарнаГодина,MONTH(ОктНед1+13)=10),ОктНед1+13,\"\"),IF(AND(YEAR(ОктНед1+20)=КалендарнаГодина,MONTH(ОктНед1+20)=10),ОктНед1+20,\"\"))","v":"2022-10-15"},{"$f":"IF(DAY(ОктНед1)=1,IF(AND(YEAR(ОктНед1+14)=КалендарнаГодина,MONTH(ОктНед1+14)=10),ОктНед1+14,\"\"),IF(AND(YEAR(ОктНед1+21)=КалендарнаГодина,MONTH(ОктНед1+21)=10),ОктНед1+21,\"\"))","v":"2022-10-16"}]
["Въведете улица и номер в клетка U44",null,{"$f":"IF(DAY(SepSun1)=1,IF(AND(YEAR(SepSun1+15)=КалендарнаГодина,MONTH(SepSun1+15)=9),SepSun1+15,\"\"),IF(AND(YEAR(SepSun1+22)=КалендарнаГодина,MONTH(SepSun1+22)=9),SepSun1+22,\"\"))","v":"2022-09-19"},{"$f":"IF(DAY(SepSun1)=1,IF(AND(YEAR(SepSun1+16)=КалендарнаГодина,MONTH(SepSun1+16)=9),SepSun1+16,\"\"),IF(AND(YEAR(SepSun1+23)=КалендарнаГодина,MONTH(SepSun1+23)=9),SepSun1+23,\"\"))","v":"2022-09-20"},{"$f":"IF(DAY(SepSun1)=1,IF(AND(YEAR(SepSun1+17)=КалендарнаГодина,MONTH(SepSun1+17)=9),SepSun1+17,\"\"),IF(AND(YEAR(SepSun1+24)=КалендарнаГодина,MONTH(SepSun1+24)=9),SepSun1+24,\"\"))","v":"2022-09-21"},{"$f":"IF(DAY(SepSun1)=1,IF(AND(YEAR(SepSun1+18)=КалендарнаГодина,MONTH(SepSun1+18)=9),SepSun1+18,\"\"),IF(AND(YEAR(SepSun1+25)=КалендарнаГодина,MONTH(SepSun1+25)=9),SepSun1+25,\"\"))","v":"2022-09-22"},{"$f":"IF(DAY(SepSun1)=1,IF(AND(YEAR(SepSun1+19)=КалендарнаГодина,MONTH(SepSun1+19)=9),SepSun1+19,\"\"),IF(AND(YEAR(SepSun1+26)=КалендарнаГодина,MONTH(SepSun1+26)=9),SepSun1+26,\"\"))","v":"2022-09-23"},{"$f":"IF(DAY(SepSun1)=1,IF(AND(YEAR(SepSun1+20)=КалендарнаГодина,MONTH(SepSun1+20)=9),SepSun1+20,\"\"),IF(AND(YEAR(SepSun1+27)=КалендарнаГодина,MONTH(SepSun1+27)=9),SepSun1+27,\"\"))","v":"2022-09-24"},{"$f":"IF(DAY(SepSun1)=1,IF(AND(YEAR(SepSun1+21)=КалендарнаГодина,MONTH(SepSun1+21)=9),SepSun1+21,\"\"),IF(AND(YEAR(SepSun1+28)=КалендарнаГодина,MONTH(SepSun1+28)=9),SepSun1+28,\"\"))","v":"2022-09-25"},null,{"$f":"IF(DAY(ОктНед1)=1,IF(AND(YEAR(ОктНед1+15)=КалендарнаГодина,MONTH(ОктНед1+15)=10),ОктНед1+15,\"\"),IF(AND(YEAR(ОктНед1+22)=КалендарнаГодина,MONTH(ОктНед1+22)=10),ОктНед1+22,\"\"))","v":"2022-10-17"},{"$f":"IF(DAY(ОктНед1)=1,IF(AND(YEAR(ОктНед1+16)=КалендарнаГодина,MONTH(ОктНед1+16)=10),ОктНед1+16,\"\"),IF(AND(YEAR(ОктНед1+23)=КалендарнаГодина,MONTH(ОктНед1+23)=10),ОктНед1+23,\"\"))","v":"2022-10-18"},{"$f":"IF(DAY(ОктНед1)=1,IF(AND(YEAR(ОктНед1+17)=КалендарнаГодина,MONTH(ОктНед1+17)=10),ОктНед1+17,\"\"),IF(AND(YEAR(ОктНед1+24)=КалендарнаГодина,MONTH(ОктНед1+24)=10),ОктНед1+24,\"\"))","v":"2022-10-19"},{"$f":"IF(DAY(ОктНед1)=1,IF(AND(YEAR(ОктНед1+18)=КалендарнаГодина,MONTH(ОктНед1+18)=10),ОктНед1+18,\"\"),IF(AND(YEAR(ОктНед1+25)=КалендарнаГодина,MONTH(ОктНед1+25)=10),ОктНед1+25,\"\"))","v":"2022-10-20"},{"$f":"IF(DAY(ОктНед1)=1,IF(AND(YEAR(ОктНед1+19)=КалендарнаГодина,MONTH(ОктНед1+19)=10),ОктНед1+19,\"\"),IF(AND(YEAR(ОктНед1+26)=КалендарнаГодина,MONTH(ОктНед1+26)=10),ОктНед1+26,\"\"))","v":"2022-10-21"},{"$f":"IF(DAY(ОктНед1)=1,IF(AND(YEAR(ОктНед1+20)=КалендарнаГодина,MONTH(ОктНед1+20)=10),ОктНед1+20,\"\"),IF(AND(YEAR(ОктНед1+27)=КалендарнаГодина,MONTH(ОктНед1+27)=10),ОктНед1+27,\"\"))","v":"2022-10-22"},{"$f":"IF(DAY(ОктНед1)=1,IF(AND(YEAR(ОктНед1+21)=КалендарнаГодина,MONTH(ОктНед1+21)=10),ОктНед1+21,\"\"),IF(AND(YEAR(ОктНед1+28)=КалендарнаГодина,MONTH(ОктНед1+28)=10),ОктНед1+28,\"\"))","v":"2022-10-23"},{"$nulls":3},"Адрес: улица и номер"]
["Въведете град, област и пощенски код в клетка U45. Следващата инструкция е в клетка A47",null,{"$f":"IF(DAY(SepSun1)=1,IF(AND(YEAR(SepSun1+22)=КалендарнаГодина,MONTH(SepSun1+22)=9),SepSun1+22,\"\"),IF(AND(YEAR(SepSun1+29)=КалендарнаГодина,MONTH(SepSun1+29)=9),SepSun1+29,\"\"))","v":"2022-09-26"},{"$f":"IF(DAY(SepSun1)=1,IF(AND(YEAR(SepSun1+23)=КалендарнаГодина,MONTH(SepSun1+23)=9),SepSun1+23,\"\"),IF(AND(YEAR(SepSun1+30)=КалендарнаГодина,MONTH(SepSun1+30)=9),SepSun1+30,\"\"))","v":"2022-09-27"},{"$f":"IF(DAY(SepSun1)=1,IF(AND(YEAR(SepSun1+24)=КалендарнаГодина,MONTH(SepSun1+24)=9),SepSun1+24,\"\"),IF(AND(YEAR(SepSun1+31)=КалендарнаГодина,MONTH(SepSun1+31)=9),SepSun1+31,\"\"))","v":"2022-09-28"},{"$f":"IF(DAY(SepSun1)=1,IF(AND(YEAR(SepSun1+25)=КалендарнаГодина,MONTH(SepSun1+25)=9),SepSun1+25,\"\"),IF(AND(YEAR(SepSun1+32)=КалендарнаГодина,MONTH(SepSun1+32)=9),SepSun1+32,\"\"))","v":"2022-09-29"},{"$f":"IF(DAY(SepSun1)=1,IF(AND(YEAR(SepSun1+26)=КалендарнаГодина,MONTH(SepSun1+26)=9),SepSun1+26,\"\"),IF(AND(YEAR(SepSun1+33)=КалендарнаГодина,MONTH(SepSun1+33)=9),SepSun1+33,\"\"))","v":"2022-09-30"},{"$f":"IF(DAY(SepSun1)=1,IF(AND(YEAR(SepSun1+27)=КалендарнаГодина,MONTH(SepSun1+27)=9),SepSun1+27,\"\"),IF(AND(YEAR(SepSun1+34)=КалендарнаГодина,MONTH(SepSun1+34)=9),SepSun1+34,\"\"))","v":""},{"$f":"IF(DAY(SepSun1)=1,IF(AND(YEAR(SepSun1+28)=КалендарнаГодина,MONTH(SepSun1+28)=9),SepSun1+28,\"\"),IF(AND(YEAR(SepSun1+35)=КалендарнаГодина,MONTH(SepSun1+35)=9),SepSun1+35,\"\"))","v":""},null,{"$f":"IF(DAY(ОктНед1)=1,IF(AND(YEAR(ОктНед1+22)=КалендарнаГодина,MONTH(ОктНед1+22)=10),ОктНед1+22,\"\"),IF(AND(YEAR(ОктНед1+29)=КалендарнаГодина,MONTH(ОктНед1+29)=10),ОктНед1+29,\"\"))","v":"2022-10-24"},{"$f":"IF(DAY(ОктНед1)=1,IF(AND(YEAR(ОктНед1+23)=КалендарнаГодина,MONTH(ОктНед1+23)=10),ОктНед1+23,\"\"),IF(AND(YEAR(ОктНед1+30)=КалендарнаГодина,MONTH(ОктНед1+30)=10),ОктНед1+30,\"\"))","v":"2022-10-25"},{"$f":"IF(DAY(ОктНед1)=1,IF(AND(YEAR(ОктНед1+24)=КалендарнаГодина,MONTH(ОктНед1+24)=10),ОктНед1+24,\"\"),IF(AND(YEAR(ОктНед1+31)=КалендарнаГодина,MONTH(ОктНед1+31)=10),ОктНед1+31,\"\"))","v":"2022-10-26"},{"$f":"IF(DAY(ОктНед1)=1,IF(AND(YEAR(ОктНед1+25)=КалендарнаГодина,MONTH(ОктНед1+25)=10),ОктНед1+25,\"\"),IF(AND(YEAR(ОктНед1+32)=КалендарнаГодина,MONTH(ОктНед1+32)=10),ОктНед1+32,\"\"))","v":"2022-10-27"},{"$f":"IF(DAY(ОктНед1)=1,IF(AND(YEAR(ОктНед1+26)=КалендарнаГодина,MONTH(ОктНед1+26)=10),ОктНед1+26,\"\"),IF(AND(YEAR(ОктНед1+33)=КалендарнаГодина,MONTH(ОктНед1+33)=10),ОктНед1+33,\"\"))","v":"2022-10-28"},{"$f":"IF(DAY(ОктНед1)=1,IF(AND(YEAR(ОктНед1+27)=КалендарнаГодина,MONTH(ОктНед1+27)=10),ОктНед1+27,\"\"),IF(AND(YEAR(ОктНед1+34)=КалендарнаГодина,MONTH(ОктНед1+34)=10),ОктНед1+34,\"\"))","v":"2022-10-29"},{"$f":"IF(DAY(ОктНед1)=1,IF(AND(YEAR(ОктНед1+28)=КалендарнаГодина,MONTH(ОктНед1+28)=10),ОктНед1+28,\"\"),IF(AND(YEAR(ОктНед1+35)=КалендарнаГодина,MONTH(ОктНед1+35)=10),ОктНед1+35,\"\"))","v":"2022-10-30"},{"$nulls":3},"Град, област, пощенски код"]
[null,null,{"$f":"IF(DAY(SepSun1)=1,IF(AND(YEAR(SepSun1+29)=КалендарнаГодина,MONTH(SepSun1+29)=9),SepSun1+29,\"\"),IF(AND(YEAR(SepSun1+36)=КалендарнаГодина,MONTH(SepSun1+36)=9),SepSun1+36,\"\"))","v":""},{"$f":"IF(DAY(SepSun1)=1,IF(AND(YEAR(SepSun1+30)=КалендарнаГодина,MONTH(SepSun1+30)=9),SepSun1+30,\"\"),IF(AND(YEAR(SepSun1+37)=КалендарнаГодина,MONTH(SepSun1+37)=9),SepSun1+37,\"\"))","v":""},{"$f":"IF(DAY(SepSun1)=1,IF(AND(YEAR(SepSun1+31)=КалендарнаГодина,MONTH(SepSun1+31)=9),SepSun1+31,\"\"),IF(AND(YEAR(SepSun1+38)=КалендарнаГодина,MONTH(SepSun1+38)=9),SepSun1+38,\"\"))","v":""},{"$f":"IF(DAY(SepSun1)=1,IF(AND(YEAR(SepSun1+32)=КалендарнаГодина,MONTH(SepSun1+32)=9),SepSun1+32,\"\"),IF(AND(YEAR(SepSun1+39)=КалендарнаГодина,MONTH(SepSun1+39)=9),SepSun1+39,\"\"))","v":""},{"$f":"IF(DAY(SepSun1)=1,IF(AND(YEAR(SepSun1+33)=КалендарнаГодина,MONTH(SepSun1+33)=9),SepSun1+33,\"\"),IF(AND(YEAR(SepSun1+40)=КалендарнаГодина,MONTH(SepSun1+40)=9),SepSun1+40,\"\"))","v":""},{"$f":"IF(DAY(SepSun1)=1,IF(AND(YEAR(SepSun1+34)=КалендарнаГодина,MONTH(SepSun1+34)=9),SepSun1+34,\"\"),IF(AND(YEAR(SepSun1+41)=КалендарнаГодина,MONTH(SepSun1+41)=9),SepSun1+41,\"\"))","v":""},{"$f":"IF(DAY(SepSun1)=1,IF(AND(YEAR(SepSun1+35)=КалендарнаГодина,MONTH(SepSun1+35)=9),SepSun1+35,\"\"),IF(AND(YEAR(SepSun1+42)=КалендарнаГодина,MONTH(SepSun1+42)=9),SepSun1+42,\"\"))","v":""},null,{"$f":"IF(DAY(ОктНед1)=1,IF(AND(YEAR(ОктНед1+29)=КалендарнаГодина,MONTH(ОктНед1+29)=10),ОктНед1+29,\"\"),IF(AND(YEAR(ОктНед1+36)=КалендарнаГодина,MONTH(ОктНед1+36)=10),ОктНед1+36,\"\"))","v":"2022-10-31"},{"$f":"IF(DAY(ОктНед1)=1,IF(AND(YEAR(ОктНед1+30)=КалендарнаГодина,MONTH(ОктНед1+30)=10),ОктНед1+30,\"\"),IF(AND(YEAR(ОктНед1+37)=КалендарнаГодина,MONTH(ОктНед1+37)=10),ОктНед1+37,\"\"))","v":""},{"$f":"IF(DAY(ОктНед1)=1,IF(AND(YEAR(ОктНед1+31)=КалендарнаГодина,MONTH(ОктНед1+31)=10),ОктНед1+31,\"\"),IF(AND(YEAR(ОктНед1+38)=КалендарнаГодина,MONTH(ОктНед1+38)=10),ОктНед1+38,\"\"))","v":""},{"$f":"IF(DAY(ОктНед1)=1,IF(AND(YEAR(ОктНед1+32)=КалендарнаГодина,MONTH(ОктНед1+32)=10),ОктНед1+32,\"\"),IF(AND(YEAR(ОктНед1+39)=КалендарнаГодина,MONTH(ОктНед1+39)=10),ОктНед1+39,\"\"))","v":""},{"$f":"IF(DAY(ОктНед1)=1,IF(AND(YEAR(ОктНед1+33)=КалендарнаГодина,MONTH(ОктНед1+33)=10),ОктНед1+33,\"\"),IF(AND(YEAR(ОктНед1+40)=КалендарнаГодина,MONTH(ОктНед1+40)=10),ОктНед1+40,\"\"))","v":""},{"$f":"IF(DAY(ОктНед1)=1,IF(AND(YEAR(ОктНед1+34)=КалендарнаГодина,MONTH(ОктНед1+34)=10),ОктНед1+34,\"\"),IF(AND(YEAR(ОктНед1+41)=КалендарнаГодина,MONTH(ОктНед1+41)=10),ОктНед1+41,\"\"))","v":""},{"$f":"IF(DAY(ОктНед1)=1,IF(AND(YEAR(ОктНед1+35)=КалендарнаГодина,MONTH(ОктНед1+35)=10),ОктНед1+35,\"\"),IF(AND(YEAR(ОктНед1+42)=КалендарнаГодина,MONTH(ОктНед1+42)=10),ОктНед1+42,\"\"))","v":""}]
["Въведете телефонен номер на фирмата в клетка U47",{"$nulls":19},"Телефон"]
["Етикетът за ноември е в клетка C48, а за декември в клетка K48. Въведете имейл адрес в клетка U48",null,"НОЕМВРИ",{"$nulls":7},"ДЕКЕМВРИ",{"$nulls":9},"Имейл"]
["Таблицата на календара за ноември се намират в клетките от C49 до I55 а таблицата на календара за декември е в клетки от K49 да Q55. Следващата инструкция е в клетка A51",null,"ПОН","ВТО","СРЯ","ЧЕТ","ПЕТ","СЪБ","НЕД",null,"ПОН","ВТО","СРЯ","ЧЕТ","ПЕТ","СЪБ","НЕД",{"$nulls":3},"Уеб сайт"]
[null,null,{"$f":"IF(DAY(НоеНед1)=1,\"\",IF(AND(YEAR(НоеНед1+1)=КалендарнаГодина,MONTH(НоеНед1+1)=11),НоеНед1+1,\"\"))","v":""},{"$f":"IF(DAY(НоеНед1)=1,\"\",IF(AND(YEAR(НоеНед1+2)=КалендарнаГодина,MONTH(НоеНед1+2)=11),НоеНед1+2,\"\"))","v":"2022-11-01"},{"$f":"IF(DAY(НоеНед1)=1,\"\",IF(AND(YEAR(НоеНед1+3)=КалендарнаГодина,MONTH(НоеНед1+3)=11),НоеНед1+3,\"\"))","v":"2022-11-02"},{"$f":"IF(DAY(НоеНед1)=1,\"\",IF(AND(YEAR(НоеНед1+4)=КалендарнаГодина,MONTH(НоеНед1+4)=11),НоеНед1+4,\"\"))","v":"2022-11-03"},{"$f":"IF(DAY(НоеНед1)=1,\"\",IF(AND(YEAR(НоеНед1+5)=КалендарнаГодина,MONTH(НоеНед1+5)=11),НоеНед1+5,\"\"))","v":"2022-11-04"},{"$f":"IF(DAY(НоеНед1)=1,\"\",IF(AND(YEAR(НоеНед1+6)=КалендарнаГодина,MONTH(НоеНед1+6)=11),НоеНед1+6,\"\"))","v":"2022-11-05"},{"$f":"IF(DAY(НоеНед1)=1,IF(AND(YEAR(НоеНед1)=КалендарнаГодина,MONTH(НоеНед1)=11),НоеНед1,\"\"),IF(AND(YEAR(НоеНед1+7)=КалендарнаГодина,MONTH(НоеНед1+7)=11),НоеНед1+7,\"\"))","v":"2022-11-06"},null,{"$f":"IF(DAY(ДекНед1)=1,\"\",IF(AND(YEAR(ДекНед1+1)=КалендарнаГодина,MONTH(ДекНед1+1)=12),ДекНед1+1,\"\"))","v":""},{"$f":"IF(DAY(ДекНед1)=1,\"\",IF(AND(YEAR(ДекНед1+2)=КалендарнаГодина,MONTH(ДекНед1+2)=12),ДекНед1+2,\"\"))","v":""},{"$f":"IF(DAY(ДекНед1)=1,\"\",IF(AND(YEAR(ДекНед1+3)=КалендарнаГодина,MONTH(ДекНед1+3)=12),ДекНед1+3,\"\"))","v":""},{"$f":"IF(DAY(ДекНед1)=1,\"\",IF(AND(YEAR(ДекНед1+4)=КалендарнаГодина,MONTH(ДекНед1+4)=12),ДекНед1+4,\"\"))","v":"2022-12-01"},{"$f":"IF(DAY(ДекНед1)=1,\"\",IF(AND(YEAR(ДекНед1+5)=КалендарнаГодина,MONTH(ДекНед1+5)=12),ДекНед1+5,\"\"))","v":"2022-12-02"},{"$f":"IF(DAY(ДекНед1)=1,\"\",IF(AND(YEAR(ДекНед1+6)=КалендарнаГодина,MONTH(ДекНед1+6)=12),ДекНед1+6,\"\"))","v":"2022-12-03"},{"$f":"IF(DAY(ДекНед1)=1,IF(AND(YEAR(ДекНед1)=КалендарнаГодина,MONTH(ДекНед1)=12),ДекНед1,\"\"),IF(AND(YEAR(ДекНед1+7)=КалендарнаГодина,MONTH(ДекНед1+7)=12),ДекНед1+7,\"\"))","v":"2022-12-04"}]
["Добавете емблема на фирмата в клетка U51",null,{"$f":"IF(DAY(НоеНед1)=1,IF(AND(YEAR(НоеНед1+1)=КалендарнаГодина,MONTH(НоеНед1+1)=11),НоеНед1+1,\"\"),IF(AND(YEAR(НоеНед1+8)=КалендарнаГодина,MONTH(НоеНед1+8)=11),НоеНед1+8,\"\"))","v":"2022-11-07"},{"$f":"IF(DAY(НоеНед1)=1,IF(AND(YEAR(НоеНед1+2)=КалендарнаГодина,MONTH(НоеНед1+2)=11),НоеНед1+2,\"\"),IF(AND(YEAR(НоеНед1+9)=КалендарнаГодина,MONTH(НоеНед1+9)=11),НоеНед1+9,\"\"))","v":"2022-11-08"},{"$f":"IF(DAY(НоеНед1)=1,IF(AND(YEAR(НоеНед1+3)=КалендарнаГодина,MONTH(НоеНед1+3)=11),НоеНед1+3,\"\"),IF(AND(YEAR(НоеНед1+10)=КалендарнаГодина,MONTH(НоеНед1+10)=11),НоеНед1+10,\"\"))","v":"2022-11-09"},{"$f":"IF(DAY(НоеНед1)=1,IF(AND(YEAR(НоеНед1+4)=КалендарнаГодина,MONTH(НоеНед1+4)=11),НоеНед1+4,\"\"),IF(AND(YEAR(НоеНед1+11)=КалендарнаГодина,MONTH(НоеНед1+11)=11),НоеНед1+11,\"\"))","v":"2022-11-10"},{"$f":"IF(DAY(НоеНед1)=1,IF(AND(YEAR(НоеНед1+5)=КалендарнаГодина,MONTH(НоеНед1+5)=11),НоеНед1+5,\"\"),IF(AND(YEAR(НоеНед1+12)=КалендарнаГодина,MONTH(НоеНед1+12)=11),НоеНед1+12,\"\"))","v":"2022-11-11"},{"$f":"IF(DAY(НоеНед1)=1,IF(AND(YEAR(НоеНед1+6)=КалендарнаГодина,MONTH(НоеНед1+6)=11),НоеНед1+6,\"\"),IF(AND(YEAR(НоеНед1+13)=КалендарнаГодина,MONTH(НоеНед1+13)=11),НоеНед1+13,\"\"))","v":"2022-11-12"},{"$f":"IF(DAY(НоеНед1)=1,IF(AND(YEAR(НоеНед1+7)=КалендарнаГодина,MONTH(НоеНед1+7)=11),НоеНед1+7,\"\"),IF(AND(YEAR(НоеНед1+14)=КалендарнаГодина,MONTH(НоеНед1+14)=11),НоеНед1+14,\"\"))","v":"2022-11-13"},null,{"$f":"IF(DAY(ДекНед1)=1,IF(AND(YEAR(ДекНед1+1)=КалендарнаГодина,MONTH(ДекНед1+1)=12),ДекНед1+1,\"\"),IF(AND(YEAR(ДекНед1+8)=КалендарнаГодина,MONTH(ДекНед1+8)=12),ДекНед1+8,\"\"))","v":"2022-12-05"},{"$f":"IF(DAY(ДекНед1)=1,IF(AND(YEAR(ДекНед1+2)=КалендарнаГодина,MONTH(ДекНед1+2)=12),ДекНед1+2,\"\"),IF(AND(YEAR(ДекНед1+9)=КалендарнаГодина,MONTH(ДекНед1+9)=12),ДекНед1+9,\"\"))","v":"2022-12-06"},{"$f":"IF(DAY(ДекНед1)=1,IF(AND(YEAR(ДекНед1+3)=КалендарнаГодина,MONTH(ДекНед1+3)=12),ДекНед1+3,\"\"),IF(AND(YEAR(ДекНед1+10)=КалендарнаГодина,MONTH(ДекНед1+10)=12),ДекНед1+10,\"\"))","v":"2022-12-07"},{"$f":"IF(DAY(ДекНед1)=1,IF(AND(YEAR(ДекНед1+4)=КалендарнаГодина,MONTH(ДекНед1+4)=12),ДекНед1+4,\"\"),IF(AND(YEAR(ДекНед1+11)=КалендарнаГодина,MONTH(ДекНед1+11)=12),ДекНед1+11,\"\"))","v":"2022-12-08"},{"$f":"IF(DAY(ДекНед1)=1,IF(AND(YEAR(ДекНед1+5)=КалендарнаГодина,MONTH(ДекНед1+5)=12),ДекНед1+5,\"\"),IF(AND(YEAR(ДекНед1+12)=КалендарнаГодина,MONTH(ДекНед1+12)=12),ДекНед1+12,\"\"))","v":"2022-12-09"},{"$f":"IF(DAY(ДекНед1)=1,IF(AND(YEAR(ДекНед1+6)=КалендарнаГодина,MONTH(ДекНед1+6)=12),ДекНед1+6,\"\"),IF(AND(YEAR(ДекНед1+13)=КалендарнаГодина,MONTH(ДекНед1+13)=12),ДекНед1+13,\"\"))","v":"2022-12-10"},{"$f":"IF(DAY(ДекНед1)=1,IF(AND(YEAR(ДекНед1+7)=КалендарнаГодина,MONTH(ДекНед1+7)=12),ДекНед1+7,\"\"),IF(AND(YEAR(ДекНед1+14)=КалендарнаГодина,MONTH(ДекНед1+14)=12),ДекНед1+14,\"\"))","v":"2022-12-11"},{"$nulls":3},"Контейнерът за емблемата е в тази клетка."]
[null,null,{"$f":"IF(DAY(НоеНед1)=1,IF(AND(YEAR(НоеНед1+8)=КалендарнаГодина,MONTH(НоеНед1+8)=11),НоеНед1+8,\"\"),IF(AND(YEAR(НоеНед1+15)=КалендарнаГодина,MONTH(НоеНед1+15)=11),НоеНед1+15,\"\"))","v":"2022-11-14"},{"$f":"IF(DAY(НоеНед1)=1,IF(AND(YEAR(НоеНед1+9)=КалендарнаГодина,MONTH(НоеНед1+9)=11),НоеНед1+9,\"\"),IF(AND(YEAR(НоеНед1+16)=КалендарнаГодина,MONTH(НоеНед1+16)=11),НоеНед1+16,\"\"))","v":"2022-11-15"},{"$f":"IF(DAY(НоеНед1)=1,IF(AND(YEAR(НоеНед1+10)=КалендарнаГодина,MONTH(НоеНед1+10)=11),НоеНед1+10,\"\"),IF(AND(YEAR(НоеНед1+17)=КалендарнаГодина,MONTH(НоеНед1+17)=11),НоеНед1+17,\"\"))","v":"2022-11-16"},{"$f":"IF(DAY(НоеНед1)=1,IF(AND(YEAR(НоеНед1+11)=КалендарнаГодина,MONTH(НоеНед1+11)=11),НоеНед1+11,\"\"),IF(AND(YEAR(НоеНед1+18)=КалендарнаГодина,MONTH(НоеНед1+18)=11),НоеНед1+18,\"\"))","v":"2022-11-17"},{"$f":"IF(DAY(НоеНед1)=1,IF(AND(YEAR(НоеНед1+12)=КалендарнаГодина,MONTH(НоеНед1+12)=11),НоеНед1+12,\"\"),IF(AND(YEAR(НоеНед1+19)=КалендарнаГодина,MONTH(НоеНед1+19)=11),НоеНед1+19,\"\"))","v":"2022-11-18"},{"$f":"IF(DAY(НоеНед1)=1,IF(AND(YEAR(НоеНед1+13)=КалендарнаГодина,MONTH(НоеНед1+13)=11),НоеНед1+13,\"\"),IF(AND(YEAR(НоеНед1+20)=КалендарнаГодина,MONTH(НоеНед1+20)=11),НоеНед1+20,\"\"))","v":"2022-11-19"},{"$f":"IF(DAY(НоеНед1)=1,IF(AND(YEAR(НоеНед1+14)=КалендарнаГодина,MONTH(НоеНед1+14)=11),НоеНед1+14,\"\"),IF(AND(YEAR(НоеНед1+21)=КалендарнаГодина,MONTH(НоеНед1+21)=11),НоеНед1+21,\"\"))","v":"2022-11-20"},null,{"$f":"IF(DAY(ДекНед1)=1,IF(AND(YEAR(ДекНед1+8)=КалендарнаГодина,MONTH(ДекНед1+8)=12),ДекНед1+8,\"\"),IF(AND(YEAR(ДекНед1+15)=КалендарнаГодина,MONTH(ДекНед1+15)=12),ДекНед1+15,\"\"))","v":"2022-12-12"},{"$f":"IF(DAY(ДекНед1)=1,IF(AND(YEAR(ДекНед1+9)=КалендарнаГодина,MONTH(ДекНед1+9)=12),ДекНед1+9,\"\"),IF(AND(YEAR(ДекНед1+16)=КалендарнаГодина,MONTH(ДекНед1+16)=12),ДекНед1+16,\"\"))","v":"2022-12-13"},{"$f":"IF(DAY(ДекНед1)=1,IF(AND(YEAR(ДекНед1+10)=КалендарнаГодина,MONTH(ДекНед1+10)=12),ДекНед1+10,\"\"),IF(AND(YEAR(ДекНед1+17)=КалендарнаГодина,MONTH(ДекНед1+17)=12),ДекНед1+17,\"\"))","v":"2022-12-14"},{"$f":"IF(DAY(ДекНед1)=1,IF(AND(YEAR(ДекНед1+11)=КалендарнаГодина,MONTH(ДекНед1+11)=12),ДекНед1+11,\"\"),IF(AND(YEAR(ДекНед1+18)=КалендарнаГодина,MONTH(ДекНед1+18)=12),ДекНед1+18,\"\"))","v":"2022-12-15"},{"$f":"IF(DAY(ДекНед1)=1,IF(AND(YEAR(ДекНед1+12)=КалендарнаГодина,MONTH(ДекНед1+12)=12),ДекНед1+12,\"\"),IF(AND(YEAR(ДекНед1+19)=КалендарнаГодина,MONTH(ДекНед1+19)=12),ДекНед1+19,\"\"))","v":"2022-12-16"},{"$f":"IF(DAY(ДекНед1)=1,IF(AND(YEAR(ДекНед1+13)=КалендарнаГодина,MONTH(ДекНед1+13)=12),ДекНед1+13,\"\"),IF(AND(YEAR(ДекНед1+20)=КалендарнаГодина,MONTH(ДекНед1+20)=12),ДекНед1+20,\"\"))","v":"2022-12-17"},{"$f":"IF(DAY(ДекНед1)=1,IF(AND(YEAR(ДекНед1+14)=КалендарнаГодина,MONTH(ДекНед1+14)=12),ДекНед1+14,\"\"),IF(AND(YEAR(ДекНед1+21)=КалендарнаГодина,MONTH(ДекНед1+21)=12),ДекНед1+21,\"\"))","v":"2022-12-18"}]
[null,null,{"$f":"IF(DAY(НоеНед1)=1,IF(AND(YEAR(НоеНед1+15)=КалендарнаГодина,MONTH(НоеНед1+15)=11),НоеНед1+15,\"\"),IF(AND(YEAR(НоеНед1+22)=КалендарнаГодина,MONTH(НоеНед1+22)=11),НоеНед1+22,\"\"))","v":"2022-11-21"},{"$f":"IF(DAY(НоеНед1)=1,IF(AND(YEAR(НоеНед1+16)=КалендарнаГодина,MONTH(НоеНед1+16)=11),НоеНед1+16,\"\"),IF(AND(YEAR(НоеНед1+23)=КалендарнаГодина,MONTH(НоеНед1+23)=11),НоеНед1+23,\"\"))","v":"2022-11-22"},{"$f":"IF(DAY(НоеНед1)=1,IF(AND(YEAR(НоеНед1+17)=КалендарнаГодина,MONTH(НоеНед1+17)=11),НоеНед1+17,\"\"),IF(AND(YEAR(НоеНед1+24)=КалендарнаГодина,MONTH(НоеНед1+24)=11),НоеНед1+24,\"\"))","v":"2022-11-23"},{"$f":"IF(DAY(НоеНед1)=1,IF(AND(YEAR(НоеНед1+18)=КалендарнаГодина,MONTH(НоеНед1+18)=11),НоеНед1+18,\"\"),IF(AND(YEAR(НоеНед1+25)=КалендарнаГодина,MONTH(НоеНед1+25)=11),НоеНед1+25,\"\"))","v":"2022-11-24"},{"$f":"IF(DAY(НоеНед1)=1,IF(AND(YEAR(НоеНед1+19)=КалендарнаГодина,MONTH(НоеНед1+19)=11),НоеНед1+19,\"\"),IF(AND(YEAR(НоеНед1+26)=КалендарнаГодина,MONTH(НоеНед1+26)=11),НоеНед1+26,\"\"))","v":"2022-11-25"},{"$f":"IF(DAY(НоеНед1)=1,IF(AND(YEAR(НоеНед1+20)=КалендарнаГодина,MONTH(НоеНед1+20)=11),НоеНед1+20,\"\"),IF(AND(YEAR(НоеНед1+27)=КалендарнаГодина,MONTH(НоеНед1+27)=11),НоеНед1+27,\"\"))","v":"2022-11-26"},{"$f":"IF(DAY(НоеНед1)=1,IF(AND(YEAR(НоеНед1+21)=КалендарнаГодина,MONTH(НоеНед1+21)=11),НоеНед1+21,\"\"),IF(AND(YEAR(НоеНед1+28)=КалендарнаГодина,MONTH(НоеНед1+28)=11),НоеНед1+28,\"\"))","v":"2022-11-27"},null,{"$f":"IF(DAY(ДекНед1)=1,IF(AND(YEAR(ДекНед1+15)=КалендарнаГодина,MONTH(ДекНед1+15)=12),ДекНед1+15,\"\"),IF(AND(YEAR(ДекНед1+22)=КалендарнаГодина,MONTH(ДекНед1+22)=12),ДекНед1+22,\"\"))","v":"2022-12-19"},{"$f":"IF(DAY(ДекНед1)=1,IF(AND(YEAR(ДекНед1+16)=КалендарнаГодина,MONTH(ДекНед1+16)=12),ДекНед1+16,\"\"),IF(AND(YEAR(ДекНед1+23)=КалендарнаГодина,MONTH(ДекНед1+23)=12),ДекНед1+23,\"\"))","v":"2022-12-20"},{"$f":"IF(DAY(ДекНед1)=1,IF(AND(YEAR(ДекНед1+17)=КалендарнаГодина,MONTH(ДекНед1+17)=12),ДекНед1+17,\"\"),IF(AND(YEAR(ДекНед1+24)=КалендарнаГодина,MONTH(ДекНед1+24)=12),ДекНед1+24,\"\"))","v":"2022-12-21"},{"$f":"IF(DAY(ДекНед1)=1,IF(AND(YEAR(ДекНед1+18)=КалендарнаГодина,MONTH(ДекНед1+18)=12),ДекНед1+18,\"\"),IF(AND(YEAR(ДекНед1+25)=КалендарнаГодина,MONTH(ДекНед1+25)=12),ДекНед1+25,\"\"))","v":"2022-12-22"},{"$f":"IF(DAY(ДекНед1)=1,IF(AND(YEAR(ДекНед1+19)=КалендарнаГодина,MONTH(ДекНед1+19)=12),ДекНед1+19,\"\"),IF(AND(YEAR(ДекНед1+26)=КалендарнаГодина,MONTH(ДекНед1+26)=12),ДекНед1+26,\"\"))","v":"2022-12-23"},{"$f":"IF(DAY(ДекНед1)=1,IF(AND(YEAR(ДекНед1+20)=КалендарнаГодина,MONTH(ДекНед1+20)=12),ДекНед1+20,\"\"),IF(AND(YEAR(ДекНед1+27)=КалендарнаГодина,MONTH(ДекНед1+27)=12),ДекНед1+27,\"\"))","v":"2022-12-24"},{"$f":"IF(DAY(ДекНед1)=1,IF(AND(YEAR(ДекНед1+21)=КалендарнаГодина,MONTH(ДекНед1+21)=12),ДекНед1+21,\"\"),IF(AND(YEAR(ДекНед1+28)=КалендарнаГодина,MONTH(ДекНед1+28)=12),ДекНед1+28,\"\"))","v":"2022-12-25"}]
[null,null,{"$f":"IF(DAY(НоеНед1)=1,IF(AND(YEAR(НоеНед1+22)=КалендарнаГодина,MONTH(НоеНед1+22)=11),НоеНед1+22,\"\"),IF(AND(YEAR(НоеНед1+29)=КалендарнаГодина,MONTH(НоеНед1+29)=11),НоеНед1+29,\"\"))","v":"2022-11-28"},{"$f":"IF(DAY(НоеНед1)=1,IF(AND(YEAR(НоеНед1+23)=КалендарнаГодина,MONTH(НоеНед1+23)=11),НоеНед1+23,\"\"),IF(AND(YEAR(НоеНед1+30)=КалендарнаГодина,MONTH(НоеНед1+30)=11),НоеНед1+30,\"\"))","v":"2022-11-29"},{"$f":"IF(DAY(НоеНед1)=1,IF(AND(YEAR(НоеНед1+24)=КалендарнаГодина,MONTH(НоеНед1+24)=11),НоеНед1+24,\"\"),IF(AND(YEAR(НоеНед1+31)=КалендарнаГодина,MONTH(НоеНед1+31)=11),НоеНед1+31,\"\"))","v":"2022-11-30"},{"$f":"IF(DAY(НоеНед1)=1,IF(AND(YEAR(НоеНед1+25)=КалендарнаГодина,MONTH(НоеНед1+25)=11),НоеНед1+25,\"\"),IF(AND(YEAR(НоеНед1+32)=КалендарнаГодина,MONTH(НоеНед1+32)=11),НоеНед1+32,\"\"))","v":""},{"$f":"IF(DAY(НоеНед1)=1,IF(AND(YEAR(НоеНед1+26)=КалендарнаГодина,MONTH(НоеНед1+26)=11),НоеНед1+26,\"\"),IF(AND(YEAR(НоеНед1+33)=КалендарнаГодина,MONTH(НоеНед1+33)=11),НоеНед1+33,\"\"))","v":""},{"$f":"IF(DAY(НоеНед1)=1,IF(AND(YEAR(НоеНед1+27)=КалендарнаГодина,MONTH(НоеНед1+27)=11),НоеНед1+27,\"\"),IF(AND(YEAR(НоеНед1+34)=КалендарнаГодина,MONTH(НоеНед1+34)=11),НоеНед1+34,\"\"))","v":""},{"$f":"IF(DAY(НоеНед1)=1,IF(AND(YEAR(НоеНед1+28)=КалендарнаГодина,MONTH(НоеНед1+28)=11),НоеНед1+28,\"\"),IF(AND(YEAR(НоеНед1+35)=КалендарнаГодина,MONTH(НоеНед1+35)=11),НоеНед1+35,\"\"))","v":""},null,{"$f":"IF(DAY(ДекНед1)=1,IF(AND(YEAR(ДекНед1+22)=КалендарнаГодина,MONTH(ДекНед1+22)=12),ДекНед1+22,\"\"),IF(AND(YEAR(ДекНед1+29)=КалендарнаГодина,MONTH(ДекНед1+29)=12),ДекНед1+29,\"\"))","v":"2022-12-26"},{"$f":"IF(DAY(ДекНед1)=1,IF(AND(YEAR(ДекНед1+23)=КалендарнаГодина,MONTH(ДекНед1+23)=12),ДекНед1+23,\"\"),IF(AND(YEAR(ДекНед1+30)=КалендарнаГодина,MONTH(ДекНед1+30)=12),ДекНед1+30,\"\"))","v":"2022-12-27"},{"$f":"IF(DAY(ДекНед1)=1,IF(AND(YEAR(ДекНед1+24)=КалендарнаГодина,MONTH(ДекНед1+24)=12),ДекНед1+24,\"\"),IF(AND(YEAR(ДекНед1+31)=КалендарнаГодина,MONTH(ДекНед1+31)=12),ДекНед1+31,\"\"))","v":"2022-12-28"},{"$f":"IF(DAY(ДекНед1)=1,IF(AND(YEAR(ДекНед1+25)=КалендарнаГодина,MONTH(ДекНед1+25)=12),ДекНед1+25,\"\"),IF(AND(YEAR(ДекНед1+32)=КалендарнаГодина,MONTH(ДекНед1+32)=12),ДекНед1+32,\"\"))","v":"2022-12-29"},{"$f":"IF(DAY(ДекНед1)=1,IF(AND(YEAR(ДекНед1+26)=КалендарнаГодина,MONTH(ДекНед1+26)=12),ДекНед1+26,\"\"),IF(AND(YEAR(ДекНед1+33)=КалендарнаГодина,MONTH(ДекНед1+33)=12),ДекНед1+33,\"\"))","v":"2022-12-30"},{"$f":"IF(DAY(ДекНед1)=1,IF(AND(YEAR(ДекНед1+27)=КалендарнаГодина,MONTH(ДекНед1+27)=12),ДекНед1+27,\"\"),IF(AND(YEAR(ДекНед1+34)=КалендарнаГодина,MONTH(ДекНед1+34)=12),ДекНед1+34,\"\"))","v":"2022-12-31"},{"$f":"IF(DAY(ДекНед1)=1,IF(AND(YEAR(ДекНед1+28)=КалендарнаГодина,MONTH(ДекНед1+28)=12),ДекНед1+28,\"\"),IF(AND(YEAR(ДекНед1+35)=КалендарнаГодина,MONTH(ДекНед1+35)=12),ДекНед1+35,\"\"))","v":""}]
[null,null,{"$f":"IF(DAY(НоеНед1)=1,IF(AND(YEAR(НоеНед1+29)=КалендарнаГодина,MONTH(НоеНед1+29)=11),НоеНед1+29,\"\"),IF(AND(YEAR(НоеНед1+36)=КалендарнаГодина,MONTH(НоеНед1+36)=11),НоеНед1+36,\"\"))","v":""},{"$f":"IF(DAY(НоеНед1)=1,IF(AND(YEAR(НоеНед1+30)=КалендарнаГодина,MONTH(НоеНед1+30)=11),НоеНед1+30,\"\"),IF(AND(YEAR(НоеНед1+37)=КалендарнаГодина,MONTH(НоеНед1+37)=11),НоеНед1+37,\"\"))","v":""},{"$f":"IF(DAY(НоеНед1)=1,IF(AND(YEAR(НоеНед1+31)=КалендарнаГодина,MONTH(НоеНед1+31)=11),НоеНед1+31,\"\"),IF(AND(YEAR(НоеНед1+38)=КалендарнаГодина,MONTH(НоеНед1+38)=11),НоеНед1+38,\"\"))","v":""},{"$f":"IF(DAY(НоеНед1)=1,IF(AND(YEAR(НоеНед1+32)=КалендарнаГодина,MONTH(НоеНед1+32)=11),НоеНед1+32,\"\"),IF(AND(YEAR(НоеНед1+39)=КалендарнаГодина,MONTH(НоеНед1+39)=11),НоеНед1+39,\"\"))","v":""},{"$f":"IF(DAY(НоеНед1)=1,IF(AND(YEAR(НоеНед1+33)=КалендарнаГодина,MONTH(НоеНед1+33)=11),НоеНед1+33,\"\"),IF(AND(YEAR(НоеНед1+40)=КалендарнаГодина,MONTH(НоеНед1+40)=11),НоеНед1+40,\"\"))","v":""},{"$f":"IF(DAY(НоеНед1)=1,IF(AND(YEAR(НоеНед1+34)=КалендарнаГодина,MONTH(НоеНед1+34)=11),НоеНед1+34,\"\"),IF(AND(YEAR(НоеНед1+41)=КалендарнаГодина,MONTH(НоеНед1+41)=11),НоеНед1+41,\"\"))","v":""},{"$f":"IF(DAY(НоеНед1)=1,IF(AND(YEAR(НоеНед1+35)=КалендарнаГодина,MONTH(НоеНед1+35)=11),НоеНед1+35,\"\"),IF(AND(YEAR(НоеНед1+42)=КалендарнаГодина,MONTH(НоеНед1+42)=11),НоеНед1+42,\"\"))","v":""},null,{"$f":"IF(DAY(ДекНед1)=1,IF(AND(YEAR(ДекНед1+29)=КалендарнаГодина,MONTH(ДекНед1+29)=12),ДекНед1+29,\"\"),IF(AND(YEAR(ДекНед1+36)=КалендарнаГодина,MONTH(ДекНед1+36)=12),ДекНед1+36,\"\"))","v":""},{"$f":"IF(DAY(ДекНед1)=1,IF(AND(YEAR(ДекНед1+30)=КалендарнаГодина,MONTH(ДекНед1+30)=12),ДекНед1+30,\"\"),IF(AND(YEAR(ДекНед1+37)=КалендарнаГодина,MONTH(ДекНед1+37)=12),ДекНед1+37,\"\"))","v":""},{"$f":"IF(DAY(ДекНед1)=1,IF(AND(YEAR(ДекНед1+31)=КалендарнаГодина,MONTH(ДекНед1+31)=12),ДекНед1+31,\"\"),IF(AND(YEAR(ДекНед1+38)=КалендарнаГодина,MONTH(ДекНед1+38)=12),ДекНед1+38,\"\"))","v":""},{"$f":"IF(DAY(ДекНед1)=1,IF(AND(YEAR(ДекНед1+32)=КалендарнаГодина,MONTH(ДекНед1+32)=12),ДекНед1+32,\"\"),IF(AND(YEAR(ДекНед1+39)=КалендарнаГодина,MONTH(ДекНед1+39)=12),ДекНед1+39,\"\"))","v":""},{"$f":"IF(DAY(ДекНед1)=1,IF(AND(YEAR(ДекНед1+33)=КалендарнаГодина,MONTH(ДекНед1+33)=12),ДекНед1+33,\"\"),IF(AND(YEAR(ДекНед1+40)=КалендарнаГодина,MONTH(ДекНед1+40)=12),ДекНед1+40,\"\"))","v":""},{"$f":"IF(DAY(ДекНед1)=1,IF(AND(YEAR(ДекНед1+34)=КалендарнаГодина,MONTH(ДекНед1+34)=12),ДекНед1+34,\"\"),IF(AND(YEAR(ДекНед1+41)=КалендарнаГодина,MONTH(ДекНед1+41)=12),ДекНед1+41,\"\"))","v":""},{"$f":"IF(DAY(ДекНед1)=1,IF(AND(YEAR(ДекНед1+35)=КалендарнаГодина,MONTH(ДекНед1+35)=12),ДекНед1+35,\"\"),IF(AND(YEAR(ДекНед1+42)=КалендарнаГодина,MONTH(ДекНед1+42)=12),ДекНед1+42,\"\"))","v":""}]